Workbook

Sheet Номенклатура
A2: Артикул | B2: Название | C2: Артикул | E2: Количество | F2: Цена, отпускная
A3: 2303299 | B3: Декор на палочке "Коняшка" | C3: 2303299 | E3: 3
A4: 2303298 | B4: Декор на палочке "Резная снежинка" | C4: 2303298 | E4: 3
A5: 1392732 | B5: Декор на палочке "Санта" | C5: 1392732 | E5: 6
A6: 1392734 | B6: Декор на палочке "Праздничный олень" | C6: 1392734 | E6: 6
A7: 2534194 | B7: Топпер "2018" | C7: 2534194 | E7: 7
A8: 2804396 | B8: Декоративные наклейки "Новогодние" новогодние игрушки | C8: 2804396 | E8: 2
A9: 2366421 | B9: Наклейка для окон "С Новым Годом и Рождеством!" , 33 х 50,5 см | C9: 2366421 | E9: 3
A10: 2366433 | B10: Наклейка для окон "Сладкого прадника" , 33 х 50,5 см | C10: 2366433 | E10: 3
A11: 2366435 | B11: Наклейка для окон "Новогодний венок" , 33 х 50,5 см | C11: 2366435 | E11: 3
A12: 2366440 | B12: Наклейка для окон "Новый год к нам мчится" , 33 х 50,5 см | C12: 2366440 | E12: 3
A13: 2313523 | B13: Наклейка декоративная светящаяся в темноте "Радости и счастья", 21 х29.7 см | C13: 2313523 | E13: 3
A14: 2313528 | B14: Наклейка декоративная светящаяся в темноте "Имбирные радости", 21 х29.7 см | C14: 2313528 | E14: 3
A15: 2400461 | B15: Наклейки декоративные голография "Снежинки", 21х29,7 см | C15: 2400461 | E15: 5
A16: 1064940 | B16: Пневмохлопушка поворотная "С Новым годом!", 30 см, фольга + бумажные вложения с пожеланиями | C16: 1064940 | E16: 36
A17: 2354783 | B17: Мягкая игрушка "Собачка Лапуська: Ранняя пташка", 30см | C17: 2354783 | E17: 1
A18: 2391201 | B18: Пакет крафтовый "Уютный дом", 64 х 32 х 16 см | C18: 2391201 | E18: 5
A19: 2391203 | B19: Пакет крафтовый "Яркий праздник", 64 х 32 х 16 см | C19: 2391203 | E19: 5
A20: 2624448 | B20: Пакет подарочный "Новогодние игрушки", люкс, 31 х 12 х 44 см | C20: 2624448 | E20: 36
A21: 2726786 | B21: Пакет подарочный "Елочные огни" люкс, 32 х 26 х 12 см | C21: 2726786 | E21: 24
A22: 2726791 | B22: Пакет подарочный "Дерево пожеланий" люкс, 32 х 26 х 12 см | C22: 2726791 | E22: 18
A23: 2726792 | B23: Пакет подарочный "Снегопад" люкс, 32 х 26 х 12 см | C23: 2726792 | E23: 24
A24: 2490184 | B24: Пакет подарочный "Ёлочка", люкс, 26 х 10 х 32 см | C24: 2490184 | E24: 24
A25: 2478308 | B25: Пакет подарочный "Подарки", 32 х 11 х 26 см | C25: 2478308 | E25: 12
A26: 1606280 | B26: Пакет подарочный под бутылку "Красно-золотые ёлки" люкс, 36 х 12 х 8.5 см | C26: 1606280 | E26: 36
A27: 1606282 | B27: Пакет подарочный под бутылку "Снежный" люкс, 36 х 12 х 8.5 см | C27: 1606282 | E27: 36
A28: 2726800 | B28: Пакет подарочный "Хвойный лес" люкс, 23 х 17.8 х 9.8 см | C28: 2726800 | E28: 12
A29: 1405256 | B29: Набор по декорированию подарочного пакета "Пряности и радости", 16 х 28 см | C29: 1405256 | E29: 10
A30: 2477856 | B30: Пакет подарочный полиэтиленовый "Вязанный узор", 23х29,5 | C30: 2477856 | E30: 60
A31: 2477862 | B31: Пакет подарочный полиэтиленовый "Золотая елка", 23х29,5 | C31: 2477862 | E31: 60
A32: 1386321 | B32: Набор для декорирования шильдика "Пряности и радости" (3 шт), 11,5 х 14 см | C32: 1386321 | E32: 4
A33: 1760182 | B33: Набор коробок 3в1 "Елочка" 19 х 12 х 7,5 - 15 х 10 х 5 см | C33: 1760182 | E33: 2
A34: 2786148 | B34: Набор конвертов "Новогодние" | C34: 2786148 | E34: 5
A35: 2327164 | B35: Подвеска световая "Фонарик серебряный" (батарейки в комплекте), 7 см, 1 LED, RGB | C35: 2327164 | E35: 10
A36: 2327168 | B36: Подвеска световая "Звезда серебряная" (батарейки в комплекте), 8 см, 1 LED, RGB | C36: 2327168 | E36: 10
A37: 2361550 | B37: Игрушка световая "Елочный шар узоры краской" 5 см, 1 LED, RGB, ЖЕЛТЫЙ | C37: 2361550 | E37: 10
A38: 2361546 | B38: Игрушка световая "Елочный шар узоры краской" 5 см, 1LED, RGB, ГОЛУБОЙ | C38: 2361546 | E38: 10
A39: 2361543 | B39: Игрушка световая "Елочный шар узоры краской" 5 см, 1 LED, RGB, РОЗОВЫЙ | C39: 2361543 | E39: 10
A40: 2433885 | B40: Гирлянда "Роса" 3 м, 30 LED, (батарейки в комплекте), БЕЛЫЙ | C40: 2433885 | E40: 10
A41: 2433901 | B41: Гирлянда "Роса" "Бутылочная пробка" 2 м, 20 LED, (батарейки в комплекте), БЕЛЫЙ | C41: 2433901 | E41: 10
A42: 2433902 | B42: Гирлянда "Роса" "Бутылочная пробка" 2 м, 20 LED, (батарейки в комплекте), ТЕПЛО-БЕЛЫЙ | C42: 2433902 | E42: 15
A43: 2433908 | B43: Гирлянда "Роса" "Бутылочная пробка" 2 м, 20 LED, (батарейки в комплекте), МУЛЬТИ | C43: 2433908 | E43: 15
A44: 1585763 | B44: Гирлянда "Метраж" 4 м с насад. “Шарики”, нить темная, УМС вилка, LED-25-220V, контроллер, 8 режимов, мульти | C44: 1585763 | E44: 5
A45: 2433894 | B45: Гирлянда "Роса" 5 м, 50 LED, (батарейки в комплекте), ТЕПЛО-БЕЛЫЙ | C45: 2433894 | E45: 10
A46: 671013 | B46: Гирлянда "Метраж" 9 м, нить темная, 240 ламп, 220V, контроллер 8 режимов, БЕЛЫЙ | C46: 671013 | E46: 5
A47: 2361617 | B47: Гирлянда "Метраж" 5 м. “Звездочка”, Н.С. LED-50-220V, контроллер 8 р, БЕЛЫЙ | C47: 2361617 | E47: 5
A48: 2590053 | B48: Шар Новогодний , D=45мм, ручная работа | C48: 2590053 | E48: 5
A49: 2123129 | B49: Набор шаров пластик d-5,5 см 4 шт полосы серебро | C49: 2123129 | E49: 3
A50: 2155314 | B50: Набор украшений пластик 5,5 см 4 шт луковица полосы красный | C50: 2155314 | E50: 2
A51: 1961208 | B51: Шары ёлочные "Удачного года, любви, исполнения желаний", набор 3 шт., d=5 см | C51: 1961208 | E51: 2
A52: 1961210 | B52: Шары ёлочные "Семейного тепла", набор 3 шт., d=5 см | C52: 1961210 | E52: 2
A53: 1346607 | B53: Новогодние шары "Серебряная паутинка" (набор 4 шт.) | C53: 1346607 | E53: 2
A54: 2122882 | B54: Новогодние шары "Туман" (набор 4 шт.), жёлтые, рельеф | C54: 2122882 | E54: 5
A55: 1307162 | B55: Новогодние шары "Снежинки" цветные (набор 4 шт.) | C55: 1307162 | E55: 5
A56: 2356900 | B56: Набор шаров пластик "Марсаль" d-5 см 6 шт | C56: 2356900 | E56: 5
A57: 2363902 | B57: Новогодние шары "Ёлочки и снежинки" (набор 6 шт.) | C57: 2363902 | E57: 5
A58: 1023298 | B58: Новогодние шары "Туман" сине-розовая звезда (набор 20 шт.) | C58: 1023298 | E58: 3
A59: 1346567 | B59: Новогодние шары "Ледяной блеск" золото (набор 6 шт.) | C59: 1346567 | E59: 10
A60: 2123169 | B60: Набор шаров пластик d-6 см 6 шт изумрудик снежинки | C60: 2123169 | E60: 3
A61: 1346563 | B61: Новогодние шары "Ледяной узор" красные (набор 6 шт.) | C61: 1346563 | E61: 5
A62: 1346564 | B62: Новогодние шары "Ледяной блеск" красные (набор 6 шт.) | C62: 1346564 | E62: 5
A63: 2123027 | B63: Набор шаров пластик d-6 см 6 шт двухцветие кружево | C63: 2123027 | E63: 3
A64: 2123028 | B64: Набор шаров пластик d-6 см 6 шт двухцветие узор | C64: 2123028 | E64: 3
A65: 2123029 | B65: Набор шаров пластик d-6 см 6 шт двухцветие завитки | C65: 2123029 | E65: 5
A66: 2123138 | B66: Набор шаров пластик d-6 см 6 шт полосы красный | C66: 2123138 | E66: 2
A67: 2123149 | B67: Набор шаров пластик d-6 см 6 шт весна бело красный | C67: 2123149 | E67: 5
A68: 2122879 | B68: Набор шаров пластик d-8 см (набор 4 шт) мираж снег синий | C68: 2122879 | E68: 5
A69: 1346571 | B69: Новогодние шары "Золотой кракелюр" (набор 6 шт.) | C69: 1346571 | E69: 2
A70: 2122889 | B70: Набор шаров пластик d-6 см аллегро микс (набор 9шт) | C70: 2122889 | E70: 5
A71: 2178200 | B71: Новогодние шары "Ёлочки" (набор 6 шт.), розовые | C71: 2178200 | E71: 10
A72: 2131388 | B72: Набор шаров пластик d-10 см 2 шт "Лазурный" снежинка | C72: 2131388 | E72: 10
A73: 2137149 | B73: Набор шаров пластик d-6 см 6 шт воздушный завитки | C73: 2137149 | E73: 5
A74: 2123190 | B74: Набор шаров пластик d-8 см 4 шт изумрудик снежинка | C74: 2123190 | E74: 2
A75: 2123157 | B75: Набор шаров пластик d-6 см 12 шт ассорти бордовое | C75: 2123157 | E75: 2
A76: 2187021 | B76: Набор шаров пластик d-5 см 16 шт ассорти темно фиолетовое | C76: 2187021 | E76: 5
A77: 1887055 | B77: Подвеска новогодняя "Звёздочка", МИКС | C77: 1887055 | E77: 6
A78: 1620121 | B78: Пакет С новым подарком!", полиэтиленовый майка, 28х50 см, 12 мкм | C78: 1620121 | E78: 200
A79: 2728097 | B79: Пакет "Часы классик", полиэтиленовый с вырубной ручкой, 30х20 см, 30 мкм | C79: 2728097 | E79: 100
A80: 2737837 | B80: Пакет подарочный "Лавка чудес", 20 х 35 см | C80: 2737837 | E80: 100
A81: 2450942 | B81: Пакет крафт "С новым годом", 31,5 х 9,5 х 41,5 см | C81: 2450942 | E81: 12
A82: 2450944 | B82: Пакет крафт "Мешок с подарками", 31,5 х 9,5 х 41,5 см | C82: 2450944 | E82: 12
A83: 2156498 | B83: Пакет вертикальный крафт "Елочка-красавица", 23 х 27 х 8 см | C83: 2156498 | E83: 12
A84: 2156508 | B84: Пакет вертикальный крафт "Баночки пожеланий", 23 х 27 х 8 см | C84: 2156508 | E84: 12
A85: 2156510 | B85: Пакет вертикальный крафт "Носочки с подарками", 23 х 27 х 8 см | C85: 2156510 | E85: 12
A86: 2276174 | B86: Пакет ламинированный под бутылку "Heppy New Year", 10,5x 36x 9 | C86: 2276174 | E86: 6
A87: 1299748 | B87: Пакет ламинат вертикальный "Снежинки" ML | C87: 1299748 | E87: 6
A88: 2113802 | B88: Пакет ламинат вертикальный "Чудесные ёлочки", 23 х27 х 8 см | C88: 2113802 | E88: 6
A89: 2792330 | B89: Пакет подарочный "Сюрприз", малый 11,5 х 5 х 17,5 см | C89: 2792330 | E89: 24
A90: 1442996 | B90: Бумага упаковочная крафт "С новым годом", марки, 50 х 70 см | C90: 1442996 | E90: 20
A91: 2586815 | B91: Бумага упаковочная крафт "Новогодний щенок", 50х70 см | C91: 2586815 | E91: 20
A92: 2586831 | B92: Бумага упаковочная крафт "В ожидании подарков", 50х70 см | C92: 2586831 | E92: 20
A93: 2576243 | B93: Бумага упаковочная глянцевая "Новогодняя роспись",70х100 см | C93: 2576243 | E93: 20
A94: 2576260 | B94: Бумага упаковочная глянцевая "Уютный новый год",70х100 см | C94: 2576260 | E94: 20
A95: 2576277 | B95: Бумага упаковочная глянцевая "Новогодняя гирлянда",70х100 см | C95: 2576277 | E95: 20
A96: 2291180 | B96: Набор коробок 5 в1 круг "Новогодняя почта" (14 х14/ 16 х 16/ 18 х18 / 20 х20 /22 х22) | C96: 2291180 | E96: 2
A97: 2291181 | B97: Набор коробок 5 в1 круг "Подарки под елкой" (14 х14/ 16 х 16/ 18 х18/ 20 х20/ 22 х 22) | C97: 2291181 | E97: 4
A98: 2437304 | B98: Набор коробок 3 в 1 "Елки", 28 х 28 х 11 - 21 х 21 х 9 см | C98: 2437304 | E98: 1
A99: 2437303 | B99: Набор коробок 3в1 "Елка", 20 х 20 х 9,5 - 15,5 х 15,5 х 7,5 см | C99: 2437303 | E99: 1

Sheet Приход (hidden)
C1: 2017-11-20
A2: Артикул | B2: Название | C2: Количество | G2: Итого
A3: 2303299 | B3: Декор на палочке "Коняшка" | C3: 3 | G3: =SUM(D3:F3) -> 0
A4: 2303298 | B4: Декор на палочке "Резная снежинка" | C4: 3 | G4: =SUM(D4:F4) -> 0
A5: 1392732 | B5: Декор на палочке "Санта" | C5: 6 | G5: 0
A6: 1392734 | B6: Декор на палочке "Праздничный олень" | C6: 6 | G6: 0
A7: 2534194 | B7: Топпер "2018" | C7: 7 | G7: 0
A8: 2804396 | B8: Декоративные наклейки "Новогодние" новогодние игрушки | C8: 2 | G8: 0
A9: 2366421 | B9: Наклейка для окон "С Новым Годом и Рождеством!" , 33 х 50,5 см | C9: 3 | G9: 0
A10: 2366433 | B10: Наклейка для окон "Сладкого прадника" , 33 х 50,5 см | C10: 3 | G10: 0
A11: 2366435 | B11: Наклейка для окон "Новогодний венок" , 33 х 50,5 см | C11: 3 | G11: 0
A12: 2366440 | B12: Наклейка для окон "Новый год к нам мчится" , 33 х 50,5 см | C12: 3 | G12: 0
A13: 2313523 | B13: Наклейка декоративная светящаяся в темноте "Радости и счастья", 21 х29.7 см | C13: 3 | G13: 0
A14: 2313528 | B14: Наклейка декоративная светящаяся в темноте "Имбирные радости", 21 х29.7 см | C14: 3 | G14: 0
A15: 2400461 | B15: Наклейки декоративные голография "Снежинки", 21х29,7 см | C15: 5 | G15: 0
A16: 1064940 | B16: Пневмохлопушка поворотная "С Новым годом!", 30 см, фольга + бумажные вложения с пожеланиями | C16: 36 | G16: 0
A17: 2354783 | B17: Мягкая игрушка "Собачка Лапуська: Ранняя пташка", 30см | C17: 1 | G17: 0
A18: 2391201 | B18: Пакет крафтовый "Уютный дом", 64 х 32 х 16 см | C18: 5 | G18: 0
A19: 2391203 | B19: Пакет крафтовый "Яркий праздник", 64 х 32 х 16 см | C19: 5 | G19: 0
A20: 2624448 | B20: Пакет подарочный "Новогодние игрушки", люкс, 31 х 12 х 44 см | C20: 36 | G20: 0
A21: 2726786 | B21: Пакет подарочный "Елочные огни" люкс, 32 х 26 х 12 см | C21: 24 | G21: 0
A22: 2726791 | B22: Пакет подарочный "Дерево пожеланий" люкс, 32 х 26 х 12 см | C22: 18 | G22: 0
A23: 2726792 | B23: Пакет подарочный "Снегопад" люкс, 32 х 26 х 12 см | C23: 24 | G23: 0
A24: 2490184 | B24: Пакет подарочный "Ёлочка", люкс, 26 х 10 х 32 см | C24: 24 | G24: 0
A25: 2478308 | B25: Пакет подарочный "Подарки", 32 х 11 х 26 см | C25: 12 | G25: 0
A26: 1606280 | B26: Пакет подарочный под бутылку "Красно-золотые ёлки" люкс, 36 х 12 х 8.5 см | C26: 36 | G26: 0
A27: 1606282 | B27: Пакет подарочный под бутылку "Снежный" люкс, 36 х 12 х 8.5 см | C27: 36 | G27: 0
A28: 2726800 | B28: Пакет подарочный "Хвойный лес" люкс, 23 х 17.8 х 9.8 см | C28: 12 | G28: 0
A29: 1405256 | B29: Набор по декорированию подарочного пакета "Пряности и радости", 16 х 28 см | C29: 10 | G29: 0
A30: 2477856 | B30: Пакет подарочный полиэтиленовый "Вязанный узор", 23х29,5 | C30: 60 | G30: 0
A31: 2477862 | B31: Пакет подарочный полиэтиленовый "Золотая елка", 23х29,5 | C31: 60 | G31: 0
A32: 1386321 | B32: Набор для декорирования шильдика "Пряности и радости" (3 шт), 11,5 х 14 см | C32: 4 | G32: 0
A33: 1760182 | B33: Набор коробок 3в1 "Елочка" 19 х 12 х 7,5 - 15 х 10 х 5 см | C33: 2 | G33: 0
A34: 2786148 | B34: Набор конвертов "Новогодние" | C34: 5 | G34: 0
A35: 2327164 | B35: Подвеска световая "Фонарик серебряный" (батарейки в комплекте), 7 см, 1 LED, RGB | C35: 10 | G35: 0
A36: 2327168 | B36: Подвеска световая "Звезда серебряная" (батарейки в комплекте), 8 см, 1 LED, RGB | C36: 10 | G36: 0
A37: 2361550 | B37: Игрушка световая "Елочный шар узоры краской" 5 см, 1 LED, RGB, ЖЕЛТЫЙ | C37: 10 | G37: 0
A38: 2361546 | B38: Игрушка световая "Елочный шар узоры краской" 5 см, 1LED, RGB, ГОЛУБОЙ | C38: 10 | G38: 0
A39: 2361543 | B39: Игрушка световая "Елочный шар узоры краской" 5 см, 1 LED, RGB, РОЗОВЫЙ | C39: 10 | G39: 0
A40: 2433885 | B40: Гирлянда "Роса" 3 м, 30 LED, (батарейки в комплекте), БЕЛЫЙ | C40: 10 | G40: 0
A41: 2433901 | B41: Гирлянда "Роса" "Бутылочная пробка" 2 м, 20 LED, (батарейки в комплекте), БЕЛЫЙ | C41: 10 | G41: 0
A42: 2433902 | B42: Гирлянда "Роса" "Бутылочная пробка" 2 м, 20 LED, (батарейки в комплекте), ТЕПЛО-БЕЛЫЙ | C42: 15 | G42: 0
A43: 2433908 | B43: Гирлянда "Роса" "Бутылочная пробка" 2 м, 20 LED, (батарейки в комплекте), МУЛЬТИ | C43: 15 | G43: 0
A44: 1585763 | B44: Гирлянда "Метраж" 4 м с насад. “Шарики”, нить темная, УМС вилка, LED-25-220V, контроллер, 8 режимов, мульти | C44: 5 | G44: 0
A45: 2433894 | B45: Гирлянда "Роса" 5 м, 50 LED, (батарейки в комплекте), ТЕПЛО-БЕЛЫЙ | C45: 10 | G45: 0
A46: 671013 | B46: Гирлянда "Метраж" 9 м, нить темная, 240 ламп, 220V, контроллер 8 режимов, БЕЛЫЙ | C46: 5 | G46: 0
A47: 2361617 | B47: Гирлянда "Метраж" 5 м. “Звездочка”, Н.С. LED-50-220V, контроллер 8 р, БЕЛЫЙ | C47: 5 | G47: 0
A48: 2590053 | B48: Шар Новогодний , D=45мм, ручная работа | C48: 5 | G48: 0
A49: 2123129 | B49: Набор шаров пластик d-5,5 см 4 шт полосы серебро | C49: 3 | G49: 0
A50: 2155314 | B50: Набор украшений пластик 5,5 см 4 шт луковица полосы красный | C50: 2 | G50: 0
A51: 1961208 | B51: Шары ёлочные "Удачного года, любви, исполнения желаний", набор 3 шт., d=5 см | C51: 2 | G51: 0
A52: 1961210 | B52: Шары ёлочные "Семейного тепла", набор 3 шт., d=5 см | C52: 2 | G52: 0
A53: 1346607 | B53: Новогодние шары "Серебряная паутинка" (набор 4 шт.) | C53: 2 | G53: 0
A54: 2122882 | B54: Новогодние шары "Туман" (набор 4 шт.), жёлтые, рельеф | C54: 5 | G54: 0
A55: 1307162 | B55: Новогодние шары "Снежинки" цветные (набор 4 шт.) | C55: 5 | G55: 0
A56: 2356900 | B56: Набор шаров пластик "Марсаль" d-5 см 6 шт | C56: 5 | G56: 0
A57: 2363902 | B57: Новогодние шары "Ёлочки и снежинки" (набор 6 шт.) | C57: 5 | G57: 0
A58: 1023298 | B58: Новогодние шары "Туман" сине-розовая звезда (набор 20 шт.) | C58: 3 | G58: 0
A59: 1346567 | B59: Новогодние шары "Ледяной блеск" золото (набор 6 шт.) | C59: 10 | G59: 0
A60: 2123169 | B60: Набор шаров пластик d-6 см 6 шт изумрудик снежинки | C60: 3 | G60: 0
A61: 1346563 | B61: Новогодние шары "Ледяной узор" красные (набор 6 шт.) | C61: 5 | G61: 0
A62: 1346564 | B62: Новогодние шары "Ледяной блеск" красные (набор 6 шт.) | C62: 5 | G62: 0
A63: 2123027 | B63: Набор шаров пластик d-6 см 6 шт двухцветие кружево | C63: 3 | G63: 0
A64: 2123028 | B64: Набор шаров пластик d-6 см 6 шт двухцветие узор | C64: 3 | G64: 0
A65: 2123029 | B65: Набор шаров пластик d-6 см 6 шт двухцветие завитки | C65: 5 | G65: 0
A66: 2123138 | B66: Набор шаров пластик d-6 см 6 шт полосы красный | C66: 2 | G66: 0
A67: 2123149 | B67: Набор шаров пластик d-6 см 6 шт весна бело красный | C67: 5 | G67: 0
A68: 2122879 | B68: Набор шаров пластик d-8 см (набор 4 шт) мираж снег синий | C68: 5 | G68: =SUM(D68:F68) -> 0
A69: 1346571 | B69: Новогодние шары "Золотой кракелюр" (набор 6 шт.) | C69: 2 | G69: 0
A70: 2122889 | B70: Набор шаров пластик d-6 см аллегро микс (набор 9шт) | C70: 5 | G70: 0
A71: 2178200 | B71: Новогодние шары "Ёлочки" (набор 6 шт.), розовые | C71: 10 | G71: 0
A72: 2131388 | B72: Набор шаров пластик d-10 см 2 шт "Лазурный" снежинка | C72: 10 | G72: 0
A73: 2137149 | B73: Набор шаров пластик d-6 см 6 шт воздушный завитки | C73: 5 | G73: 0
A74: 2123190 | B74: Набор шаров пластик d-8 см 4 шт изумрудик снежинка | C74: 2 | G74: 0
A75: 2123157 | B75: Набор шаров пластик d-6 см 12 шт ассорти бордовое | C75: 2 | G75: 0
A76: 2187021 | B76: Набор шаров пластик d-5 см 16 шт ассорти темно фиолетовое | C76: 5 | G76: 0
A77: 1887055 | B77: Подвеска новогодняя "Звёздочка", МИКС | C77: 6 | G77: 0
A78: 1620121 | B78: Пакет С новым подарком!", полиэтиленовый майка, 28х50 см, 12 мкм | C78: 200 | G78: 0
A79: 2728097 | B79: Пакет "Часы классик", полиэтиленовый с вырубной ручкой, 30х20 см, 30 мкм | C79: 100 | G79: 0
A80: 2737837 | B80: Пакет подарочный "Лавка чудес", 20 х 35 см | C80: 100 | G80: 0
A81: 2450942 | B81: Пакет крафт "С новым годом", 31,5 х 9,5 х 41,5 см | C81: 12 | G81: 0
A82: 2450944 | B82: Пакет крафт "Мешок с подарками", 31,5 х 9,5 х 41,5 см | C82: 12 | G82: 0
A83: 2156498 | B83: Пакет вертикальный крафт "Елочка-красавица", 23 х 27 х 8 см | C83: 12 | G83: 0
A84: 2156508 | B84: Пакет вертикальный крафт "Баночки пожеланий", 23 х 27 х 8 см | C84: 12 | G84: 0
A85: 2156510 | B85: Пакет вертикальный крафт "Носочки с подарками", 23 х 27 х 8 см | C85: 12 | G85: 0
A86: 2276174 | B86: Пакет ламинированный под бутылку "Heppy New Year", 10,5x 36x 9 | C86: 6 | G86: 0
A87: 1299748 | B87: Пакет ламинат вертикальный "Снежинки" ML | C87: 6 | G87: 0
A88: 2113802 | B88: Пакет ламинат вертикальный "Чудесные ёлочки", 23 х27 х 8 см | C88: 6 | G88: 0
A89: 2792330 | B89: Пакет подарочный "Сюрприз", малый 11,5 х 5 х 17,5 см | C89: 24 | G89: 0
A90: 1442996 | B90: Бумага упаковочная крафт "С новым годом", марки, 50 х 70 см | C90: 20 | G90: 0
A91: 2586815 | B91: Бумага упаковочная крафт "Новогодний щенок", 50х70 см | C91: 20 | G91: 0
A92: 2586831 | B92: Бумага упаковочная крафт "В ожидании подарков", 50х70 см | C92: 20 | G92: 0
A93: 2576243 | B93: Бумага упаковочная глянцевая "Новогодняя роспись",70х100 см | C93: 20 | G93: 0
A94: 2576260 | B94: Бумага упаковочная глянцевая "Уютный новый год",70х100 см | C94: 20 | G94: 0
A95: 2576277 | B95: Бумага упаковочная глянцевая "Новогодняя гирлянда",70х100 см | C95: 20 | G95: 0
A96: 2291180 | B96: Набор коробок 5 в1 круг "Новогодняя почта" (14 х14/ 16 х 16/ 18 х18 / 20 х20 /22 х22) | C96: 2 | G96: 0
A97: 2291181 | B97: Набор коробок 5 в1 круг "Подарки под елкой" (14 х14/ 16 х 16/ 18 х18/ 20 х20/ 22 х 22) | C97: 4 | G97: 0
A98: 2437304 | B98: Набор коробок 3 в 1 "Елки", 28 х 28 х 11 - 21 х 21 х 9 см | C98: 1 | G98: 0
A99: 2437303 | B99: Набор коробок 3в1 "Елка", 20 х 20 х 9,5 - 15,5 х 15,5 х 7,5 см | C99: 1 | G99: 0

Sheet Расход
A2: Дата продажи | B2: Артикул | C2: Название | D2: Цена, отпускная | E2: Количество | F2: Сумма
B3: =VLOOKUP(C3,Номенклатура!$B$3:$F$284,2,0) -> 2366440 | C3: Наклейка для окон "Новый год к нам мчится" , 33 х 50,5 см | D3: =VLOOKUP(C3,Номенклатура!$B$3:$F$284,5,0) -> 0 | E3: 100 | F3: =E3*D3 -> 0
B4: =VLOOKUP(C4,Номенклатура!$B$3:$F$284,2,0) -> 2303299 | C4: Декор на палочке "Коняшка" | D4: =VLOOKUP(C4,Номенклатура!$B$3:$F$284,5,0) -> 0 | E4: 100 | F4: =E4*D4 -> 0
B5: =VLOOKUP(C5,Номенклатура!$B$3:$F$284,2,0) -> 1392732 | C5: Декор на палочке "Санта" | D5: =VLOOKUP(C5,Номенклатура!$B$3:$F$284,5,0) -> 0 | E5: 100 | F5: 0
B6: =VLOOKUP(C6,Номенклатура!$B$3:$F$284,2,0) -> 2303298 | C6: Декор на палочке "Резная снежинка" | D6: =VLOOKUP(C6,Номенклатура!$B$3:$F$284,5,0) -> 0 | E6: 100 | F6: 0
B7: =VLOOKUP(C7,Номенклатура!$B$3:$F$284,2,0) -> 2534194 | C7: Топпер "2018" | D7: =VLOOKUP(C7,Номенклатура!$B$3:$F$284,5,0) -> 0 | E7: 100 | F7: 0
B8: =VLOOKUP(C8,Номенклатура!$B$3:$F$284,2,0) -> 2366433 | C8: Наклейка для окон "Сладкого прадника" , 33 х 50,5 см | D8: =VLOOKUP(C8,Номенклатура!$B$3:$F$284,5,0) -> 0 | E8: 100 | F8: 0
B9: =VLOOKUP(C9,Номенклатура!$B$3:$F$284,2,0) -> 2804396 | C9: Декоративные наклейки "Новогодние" новогодние игрушки | D9: =VLOOKUP(C9,Номенклатура!$B$3:$F$284,5,0) -> 0 | E9: 100 | F9: 0
B10: =VLOOKUP(C10,Номенклатура!$B$3:$F$284,2,0) -> 2804396 | C10: Декоративные наклейки "Новогодние" новогодние игрушки | D10: =VLOOKUP(C10,Номенклатура!$B$3:$F$284,5,0) -> 0 | E10: 100 | F10: 0
B11: =VLOOKUP(C11,Номенклатура!$B$3:$F$284,2,0) -> 1392732 | C11: Декор на палочке "Санта" | D11: =VLOOKUP(C11,Номенклатура!$B$3:$F$284,5,0) -> 0 | E11: 100 | F11: 0
B12: =VLOOKUP(C12,Номенклатура!$B$3:$F$284,2,0) -> 1392732 | C12: Декор на палочке "Санта" | D12: =VLOOKUP(C12,Номенклатура!$B$3:$F$284,5,0) -> 0 | E12: 100 | F12: 0
B13: =VLOOKUP(C13,Номенклатура!$B$3:$F$284,2,0) ->  | D13: =VLOOKUP(C13,Номенклатура!$B$3:$F$284,5,0) ->  | E13: 100
B14: =VLOOKUP(C14,Номенклатура!$B$3:$F$284,2,0) -> 2391201 | C14: Пакет крафтовый "Уютный дом", 64 х 32 х 16 см | D14: =VLOOKUP(C14,Номенклатура!$B$3:$F$284,5,0) -> 0 | E14: 100 | F14: 0
B15: =VLOOKUP(C15,Номенклатура!$B$3:$F$284,2,0) ->  | D15: =VLOOKUP(C15,Номенклатура!$B$3:$F$284,5,0) ->  | E15: 100
B16: =VLOOKUP(C16,Номенклатура!$B$3:$F$284,2,0) -> 2366440 | C16: Наклейка для окон "Новый год к нам мчится" , 33 х 50,5 см | D16: =VLOOKUP(C16,Номенклатура!$B$3:$F$284,5,0) -> 0 | E16: 100 | F16: 0
B17: =VLOOKUP(C17,Номенклатура!$B$3:$F$284,2,0) ->  | D17: =VLOOKUP(C17,Номенклатура!$B$3:$F$284,5,0) ->  | E17: 100
B18: =VLOOKUP(C18,Номенклатура!$B$3:$F$284,2,0) ->  | D18: =VLOOKUP(C18,Номенклатура!$B$3:$F$284,5,0) ->  | E18: 100
B19: =VLOOKUP(C19,Номенклатура!$B$3:$F$284,2,0) -> 1064940 | C19: Пневмохлопушка поворотная "С Новым годом!", 30 см, фольга + бумажные вложения с пожеланиями | D19: =VLOOKUP(C19,Номенклатура!$B$3:$F$284,5,0) -> 0 | E19: 100 | F19: 0
B20: =VLOOKUP(C20,Номенклатура!$B$3:$F$284,2,0) -> 2303298 | C20: Декор на палочке "Резная снежинка" | D20: =VLOOKUP(C20,Номенклатура!$B$3:$F$284,5,0) -> 0 | E20: 100 | F20: 0
B21: =VLOOKUP(C21,Номенклатура!$B$3:$F$284,2,0) ->  | D21: =VLOOKUP(C21,Номенклатура!$B$3:$F$284,5,0) -> 
B22: =VLOOKUP(C22,Номенклатура!$B$3:$F$284,2,0) -> 2366433 | C22: Наклейка для окон "Сладкого прадника" , 33 х 50,5 см | D22: =VLOOKUP(C22,Номенклатура!$B$3:$F$284,5,0) -> 0 | F22: 0
B23: =VLOOKUP(C23,Номенклатура!$B$3:$F$284,2,0) -> 1392734 | C23: Декор на палочке "Праздничный олень" | D23: =VLOOKUP(C23,Номенклатура!$B$3:$F$284,5,0) -> 0 | F23: 0
B24: =VLOOKUP(C24,Номенклатура!$B$3:$F$284,2,0) ->  | D24: =VLOOKUP(C24,Номенклатура!$B$3:$F$284,5,0) -> 
B25: =VLOOKUP(C25,Номенклатура!$B$3:$F$284,2,0) ->  | D25: =VLOOKUP(C25,Номенклатура!$B$3:$F$284,5,0) -> 
B26: =VLOOKUP(C26,Номенклатура!$B$3:$F$284,2,0) ->  | D26: =VLOOKUP(C26,Номенклатура!$B$3:$F$284,5,0) -> 
B27: =VLOOKUP(C27,Номенклатура!$B$3:$F$284,2,0) -> 1392732 | C27: Декор на палочке "Санта" | D27: =VLOOKUP(C27,Номенклатура!$B$3:$F$284,5,0) -> 0 | F27: 0
B28: =VLOOKUP(C28,Номенклатура!$B$3:$F$284,2,0) ->  | D28: =VLOOKUP(C28,Номенклатура!$B$3:$F$284,5,0) -> 
B29: =VLOOKUP(C29,Номенклатура!$B$3:$F$284,2,0) ->  | D29: =VLOOKUP(C29,Номенклатура!$B$3:$F$284,5,0) -> 
B30: =VLOOKUP(C30,Номенклатура!$B$3:$F$284,2,0) ->  | D30: =VLOOKUP(C30,Номенклатура!$B$3:$F$284,5,0) -> 
B31: =VLOOKUP(C31,Номенклатура!$B$3:$F$284,2,0) ->  | D31: =VLOOKUP(C31,Номенклатура!$B$3:$F$284,5,0) -> 
B32: =VLOOKUP(C32,Номенклатура!$B$3:$F$284,2,0) ->  | D32: =VLOOKUP(C32,Номенклатура!$B$3:$F$284,5,0) -> 
B33: =VLOOKUP(C33,Номенклатура!$B$3:$F$284,2,0) ->  | D33: =VLOOKUP(C33,Номенклатура!$B$3:$F$284,5,0) -> 
B34: =VLOOKUP(C34,Номенклатура!$B$3:$F$284,2,0) ->  | D34: =VLOOKUP(C34,Номенклатура!$B$3:$F$284,5,0) -> 
B35: =VLOOKUP(C35,Номенклатура!$B$3:$F$284,2,0) ->  | D35: =VLOOKUP(C35,Номенклатура!$B$3:$F$284,5,0) -> 
B36: =VLOOKUP(C36,Номенклатура!$B$3:$F$284,2,0) ->  | D36: =VLOOKUP(C36,Номенклатура!$B$3:$F$284,5,0) -> 
B37: =VLOOKUP(C37,Номенклатура!$B$3:$F$284,2,0) ->  | D37: =VLOOKUP(C37,Номенклатура!$B$3:$F$284,5,0) -> 
B38: =VLOOKUP(C38,Номенклатура!$B$3:$F$284,2,0) ->  | D38: =VLOOKUP(C38,Номенклатура!$B$3:$F$284,5,0) -> 
B39: =VLOOKUP(C39,Номенклатура!$B$3:$F$284,2,0) ->  | D39: =VLOOKUP(C39,Номенклатура!$B$3:$F$284,5,0) -> 
B40: =VLOOKUP(C40,Номенклатура!$B$3:$F$284,2,0) ->  | D40: =VLOOKUP(C40,Номенклатура!$B$3:$F$284,5,0) -> 
B41: =VLOOKUP(C41,Номенклатура!$B$3:$F$284,2,0) ->  | D41: =VLOOKUP(C41,Номенклатура!$B$3:$F$284,5,0) -> 
B42: =VLOOKUP(C42,Номенклатура!$B$3:$F$284,2,0) ->  | D42: =VLOOKUP(C42,Номенклатура!$B$3:$F$284,5,0) -> 
B43: =VLOOKUP(C43,Номенклатура!$B$3:$F$284,2,0) ->  | D43: =VLOOKUP(C43,Номенклатура!$B$3:$F$284,5,0) -> 
B44: =VLOOKUP(C44,Номенклатура!$B$3:$F$284,2,0) ->  | D44: =VLOOKUP(C44,Номенклатура!$B$3:$F$284,5,0) -> 
B45: =VLOOKUP(C45,Номенклатура!$B$3:$F$284,2,0) ->  | D45: =VLOOKUP(C45,Номенклатура!$B$3:$F$284,5,0) -> 
B46: =VLOOKUP(C46,Номенклатура!$B$3:$F$284,2,0) ->  | D46: =VLOOKUP(C46,Номенклатура!$B$3:$F$284,5,0) -> 
B47: =VLOOKUP(C47,Номенклатура!$B$3:$F$284,2,0) ->  | D47: =VLOOKUP(C47,Номенклатура!$B$3:$F$284,5,0) -> 
B48: =VLOOKUP(C48,Номенклатура!$B$3:$F$284,2,0) ->  | D48: =VLOOKUP(C48,Номенклатура!$B$3:$F$284,5,0) -> 
B49: =VLOOKUP(C49,Номенклатура!$B$3:$F$284,2,0) ->  | D49: =VLOOKUP(C49,Номенклатура!$B$3:$F$284,5,0) -> 
B50: =VLOOKUP(C50,Номенклатура!$B$3:$F$284,2,0) ->  | D50: =VLOOKUP(C50,Номенклатура!$B$3:$F$284,5,0) -> 
B51: =VLOOKUP(C51,Номенклатура!$B$3:$F$284,2,0) ->  | D51: =VLOOKUP(C51,Номенклатура!$B$3:$F$284,5,0) -> 
B52: =VLOOKUP(C52,Номенклатура!$B$3:$F$284,2,0) ->  | D52: =VLOOKUP(C52,Номенклатура!$B$3:$F$284,5,0) -> 
B53: =VLOOKUP(C53,Номенклатура!$B$3:$F$284,2,0) ->  | D53: =VLOOKUP(C53,Номенклатура!$B$3:$F$284,5,0) -> 
B54: =VLOOKUP(C54,Номенклатура!$B$3:$F$284,2,0) ->  | D54: =VLOOKUP(C54,Номенклатура!$B$3:$F$284,5,0) -> 
B55: =VLOOKUP(C55,Номенклатура!$B$3:$F$284,2,0) ->  | D55: =VLOOKUP(C55,Номенклатура!$B$3:$F$284,5,0) -> 
B56: =VLOOKUP(C56,Номенклатура!$B$3:$F$284,2,0) ->  | D56: =VLOOKUP(C56,Номенклатура!$B$3:$F$284,5,0) -> 
B57: =VLOOKUP(C57,Номенклатура!$B$3:$F$284,2,0) ->  | D57: =VLOOKUP(C57,Номенклатура!$B$3:$F$284,5,0) -> 
B58: =VLOOKUP(C58,Номенклатура!$B$3:$F$284,2,0) ->  | D58: =VLOOKUP(C58,Номенклатура!$B$3:$F$284,5,0) -> 
B59: =VLOOKUP(C59,Номенклатура!$B$3:$F$284,2,0) ->  | D59: =VLOOKUP(C59,Номенклатура!$B$3:$F$284,5,0) -> 
B60: =VLOOKUP(C60,Номенклатура!$B$3:$F$284,2,0) ->  | D60: =VLOOKUP(C60,Номенклатура!$B$3:$F$284,5,0) -> 
B61: =VLOOKUP(C61,Номенклатура!$B$3:$F$284,2,0) ->  | D61: =VLOOKUP(C61,Номенклатура!$B$3:$F$284,5,0) -> 
B62: =VLOOKUP(C62,Номенклатура!$B$3:$F$284,2,0) ->  | D62: =VLOOKUP(C62,Номенклатура!$B$3:$F$284,5,0) -> 
B63: =VLOOKUP(C63,Номенклатура!$B$3:$F$284,2,0) ->  | D63: =VLOOKUP(C63,Номенклатура!$B$3:$F$284,5,0) -> 
B64: =VLOOKUP(C64,Номенклатура!$B$3:$F$284,2,0) ->  | D64: =VLOOKUP(C64,Номенклатура!$B$3:$F$284,5,0) -> 
B65: =VLOOKUP(C65,Номенклатура!$B$3:$F$284,2,0) ->  | D65: =VLOOKUP(C65,Номенклатура!$B$3:$F$284,5,0) -> 
B66: =VLOOKUP(C66,Номенклатура!$B$3:$F$284,2,0) ->  | D66: =VLOOKUP(C66,Номенклатура!$B$3:$F$284,5,0) -> 
B67: =VLOOKUP(C67,Номенклатура!$B$3:$F$284,2,0) ->  | D67: =VLOOKUP(C67,Номенклатура!$B$3:$F$284,5,0) -> 
B68: =VLOOKUP(C68,Номенклатура!$B$3:$F$284,2,0) ->  | D68: =VLOOKUP(C68,Номенклатура!$B$3:$F$284,5,0) ->  | F68: =E68*D68 -> 
B69: =VLOOKUP(C69,Номенклатура!$B$3:$F$284,2,0) ->  | D69: =VLOOKUP(C69,Номенклатура!$B$3:$F$284,5,0) -> 
B70: =VLOOKUP(C70,Номенклатура!$B$3:$F$284,2,0) ->  | D70: =VLOOKUP(C70,Номенклатура!$B$3:$F$284,5,0) -> 
B71: =VLOOKUP(C71,Номенклатура!$B$3:$F$284,2,0) ->  | D71: =VLOOKUP(C71,Номенклатура!$B$3:$F$284,5,0) -> 
B72: =VLOOKUP(C72,Номенклатура!$B$3:$F$284,2,0) ->  | D72: =VLOOKUP(C72,Номенклатура!$B$3:$F$284,5,0) -> 
B73: =VLOOKUP(C73,Номенклатура!$B$3:$F$284,2,0) ->  | D73: =VLOOKUP(C73,Номенклатура!$B$3:$F$284,5,0) -> 
B74: =VLOOKUP(C74,Номенклатура!$B$3:$F$284,2,0) ->  | D74: =VLOOKUP(C74,Номенклатура!$B$3:$F$284,5,0) -> 
B75: =VLOOKUP(C75,Номенклатура!$B$3:$F$284,2,0) ->  | D75: =VLOOKUP(C75,Номенклатура!$B$3:$F$284,5,0) -> 
B76: =VLOOKUP(C76,Номенклатура!$B$3:$F$284,2,0) ->  | D76: =VLOOKUP(C76,Номенклатура!$B$3:$F$284,5,0) -> 
B77: =VLOOKUP(C77,Номенклатура!$B$3:$F$284,2,0) ->  | D77: =VLOOKUP(C77,Номенклатура!$B$3:$F$284,5,0) -> 
B78: =VLOOKUP(C78,Номенклатура!$B$3:$F$284,2,0) ->  | D78: =VLOOKUP(C78,Номенклатура!$B$3:$F$284,5,0) -> 
B79: =VLOOKUP(C79,Номенклатура!$B$3:$F$284,2,0) ->  | D79: =VLOOKUP(C79,Номенклатура!$B$3:$F$284,5,0) -> 
B80: =VLOOKUP(C80,Номенклатура!$B$3:$F$284,2,0) ->  | D80: =VLOOKUP(C80,Номенклатура!$B$3:$F$284,5,0) -> 
B81: =VLOOKUP(C81,Номенклатура!$B$3:$F$284,2,0) ->  | D81: =VLOOKUP(C81,Номенклатура!$B$3:$F$284,5,0) -> 
B82: =VLOOKUP(C82,Номенклатура!$B$3:$F$284,2,0) ->  | D82: =VLOOKUP(C82,Номенклатура!$B$3:$F$284,5,0) -> 
B83: =VLOOKUP(C83,Номенклатура!$B$3:$F$284,2,0) ->  | D83: =VLOOKUP(C83,Номенклатура!$B$3:$F$284,5,0) -> 
B84: =VLOOKUP(C84,Номенклатура!$B$3:$F$284,2,0) ->  | D84: =VLOOKUP(C84,Номенклатура!$B$3:$F$284,5,0) -> 
B85: =VLOOKUP(C85,Номенклатура!$B$3:$F$284,2,0) ->  | D85: =VLOOKUP(C85,Номенклатура!$B$3:$F$284,5,0) -> 
B86: =VLOOKUP(C86,Номенклатура!$B$3:$F$284,2,0) ->  | D86: =VLOOKUP(C86,Номенклатура!$B$3:$F$284,5,0) -> 
B87: =VLOOKUP(C87,Номенклатура!$B$3:$F$284,2,0) ->  | D87: =VLOOKUP(C87,Номенклатура!$B$3:$F$284,5,0) -> 
B88: =VLOOKUP(C88,Номенклатура!$B$3:$F$284,2,0) ->  | D88: =VLOOKUP(C88,Номенклатура!$B$3:$F$284,5,0) -> 
B89: =VLOOKUP(C89,Номенклатура!$B$3:$F$284,2,0) ->  | D89: =VLOOKUP(C89,Номенклатура!$B$3:$F$284,5,0) -> 
B90: =VLOOKUP(C90,Номенклатура!$B$3:$F$284,2,0) ->  | D90: =VLOOKUP(C90,Номенклатура!$B$3:$F$284,5,0) -> 
B91: =VLOOKUP(C91,Номенклатура!$B$3:$F$284,2,0) ->  | D91: =VLOOKUP(C91,Номенклатура!$B$3:$F$284,5,0) -> 
B92: =VLOOKUP(C92,Номенклатура!$B$3:$F$284,2,0) ->  | D92: =VLOOKUP(C92,Номенклатура!$B$3:$F$284,5,0) -> 
B93: =VLOOKUP(C93,Номенклатура!$B$3:$F$284,2,0) ->  | D93: =VLOOKUP(C93,Номенклатура!$B$3:$F$284,5,0) -> 
B94: =VLOOKUP(C94,Номенклатура!$B$3:$F$284,2,0) ->  | D94: =VLOOKUP(C94,Номенклатура!$B$3:$F$284,5,0) -> 
B95: =VLOOKUP(C95,Номенклатура!$B$3:$F$284,2,0) ->  | D95: =VLOOKUP(C95,Номенклатура!$B$3:$F$284,5,0) -> 
B96: =VLOOKUP(C96,Номенклатура!$B$3:$F$284,2,0) ->  | D96: =VLOOKUP(C96,Номенклатура!$B$3:$F$284,5,0) -> 
B97: =VLOOKUP(C97,Номенклатура!$B$3:$F$284,2,0) ->  | D97: =VLOOKUP(C97,Номенклатура!$B$3:$F$284,5,0) -> 
B98: =VLOOKUP(C98,Номенклатура!$B$3:$F$284,2,0) ->  | D98: =VLOOKUP(C98,Номенклатура!$B$3:$F$284,5,0) -> 
B99: =VLOOKUP(C99,Номенклатура!$B$3:$F$284,2,0) ->  | D99: =VLOOKUP(C99,Номенклатура!$B$3:$F$284,5,0) -> 
B100: =VLOOKUP(C100,Номенклатура!$B$3:$F$284,2,0) ->  | D100: =VLOOKUP(C100,Номенклатура!$B$3:$F$284,5,0) -> 
B101: =VLOOKUP(C101,Номенклатура!$B$3:$F$284,2,0) ->  | D101: =VLOOKUP(C101,Номенклатура!$B$3:$F$284,5,0) -> 
B102: =VLOOKUP(C102,Номенклатура!$B$3:$F$284,2,0) ->  | D102: =VLOOKUP(C102,Номенклатура!$B$3:$F$284,5,0) -> 
B103: =VLOOKUP(C103,Номенклатура!$B$3:$F$284,2,0) ->  | D103: =VLOOKUP(C103,Номенклатура!$B$3:$F$284,5,0) -> 
B104: =VLOOKUP(C104,Номенклатура!$B$3:$F$284,2,0) ->  | D104: =VLOOKUP(C104,Номенклатура!$B$3:$F$284,5,0) -> 
B105: =VLOOKUP(C105,Номенклатура!$B$3:$F$284,2,0) ->  | D105: =VLOOKUP(C105,Номенклатура!$B$3:$F$284,5,0) -> 
B106: =VLOOKUP(C106,Номенклатура!$B$3:$F$284,2,0) ->  | D106: =VLOOKUP(C106,Номенклатура!$B$3:$F$284,5,0) -> 
B107: =VLOOKUP(C107,Номенклатура!$B$3:$F$284,2,0) ->  | D107: =VLOOKUP(C107,Номенклатура!$B$3:$F$284,5,0) -> 
B108: =VLOOKUP(C108,Номенклатура!$B$3:$F$284,2,0) ->  | D108: =VLOOKUP(C108,Номенклатура!$B$3:$F$284,5,0) -> 
B109: =VLOOKUP(C109,Номенклатура!$B$3:$F$284,2,0) ->  | D109: =VLOOKUP(C109,Номенклатура!$B$3:$F$284,5,0) -> 
B110: =VLOOKUP(C110,Номенклатура!$B$3:$F$284,2,0) ->  | D110: =VLOOKUP(C110,Номенклатура!$B$3:$F$284,5,0) -> 
B111: =VLOOKUP(C111,Номенклатура!$B$3:$F$284,2,0) ->  | D111: =VLOOKUP(C111,Номенклатура!$B$3:$F$284,5,0) -> 
B112: =VLOOKUP(C112,Номенклатура!$B$3:$F$284,2,0) ->  | D112: =VLOOKUP(C112,Номенклатура!$B$3:$F$284,5,0) -> 
B113: =VLOOKUP(C113,Номенклатура!$B$3:$F$284,2,0) ->  | D113: =VLOOKUP(C113,Номенклатура!$B$3:$F$284,5,0) -> 
B114: =VLOOKUP(C114,Номенклатура!$B$3:$F$284,2,0) ->  | D114: =VLOOKUP(C114,Номенклатура!$B$3:$F$284,5,0) -> 
B115: =VLOOKUP(C115,Номенклатура!$B$3:$F$284,2,0) ->  | D115: =VLOOKUP(C115,Номенклатура!$B$3:$F$284,5,0) -> 
B116: =VLOOKUP(C116,Номенклатура!$B$3:$F$284,2,0) ->  | D116: =VLOOKUP(C116,Номенклатура!$B$3:$F$284,5,0) -> 
B117: =VLOOKUP(C117,Номенклатура!$B$3:$F$284,2,0) ->  | D117: =VLOOKUP(C117,Номенклатура!$B$3:$F$284,5,0) -> 
B118: =VLOOKUP(C118,Номенклатура!$B$3:$F$284,2,0) ->  | D118: =VLOOKUP(C118,Номенклатура!$B$3:$F$284,5,0) -> 
B119: =VLOOKUP(C119,Номенклатура!$B$3:$F$284,2,0) ->  | D119: =VLOOKUP(C119,Номенклатура!$B$3:$F$284,5,0) -> 
B120: =VLOOKUP(C120,Номенклатура!$B$3:$F$284,2,0) ->  | D120: =VLOOKUP(C120,Номенклатура!$B$3:$F$284,5,0) -> 
B121: =VLOOKUP(C121,Номенклатура!$B$3:$F$284,2,0) ->  | D121: =VLOOKUP(C121,Номенклатура!$B$3:$F$284,5,0) -> 
B122: =VLOOKUP(C122,Номенклатура!$B$3:$F$284,2,0) ->  | D122: =VLOOKUP(C122,Номенклатура!$B$3:$F$284,5,0) -> 
B123: =VLOOKUP(C123,Номенклатура!$B$3:$F$284,2,0) ->  | D123: =VLOOKUP(C123,Номенклатура!$B$3:$F$284,5,0) -> 
B124: =VLOOKUP(C124,Номенклатура!$B$3:$F$284,2,0) ->  | D124: =VLOOKUP(C124,Номенклатура!$B$3:$F$284,5,0) -> 
B125: =VLOOKUP(C125,Номенклатура!$B$3:$F$284,2,0) ->  | D125: =VLOOKUP(C125,Номенклатура!$B$3:$F$284,5,0) -> 
B126: =VLOOKUP(C126,Номенклатура!$B$3:$F$284,2,0) ->  | D126: =VLOOKUP(C126,Номенклатура!$B$3:$F$284,5,0) -> 
B127: =VLOOKUP(C127,Номенклатура!$B$3:$F$284,2,0) ->  | D127: =VLOOKUP(C127,Номенклатура!$B$3:$F$284,5,0) -> 
B128: =VLOOKUP(C128,Номенклатура!$B$3:$F$284,2,0) ->  | D128: =VLOOKUP(C128,Номенклатура!$B$3:$F$284,5,0) -> 
B129: =VLOOKUP(C129,Номенклатура!$B$3:$F$284,2,0) ->  | D129: =VLOOKUP(C129,Номенклатура!$B$3:$F$284,5,0) -> 
B130: =VLOOKUP(C130,Номенклатура!$B$3:$F$284,2,0) ->  | D130: =VLOOKUP(C130,Номенклатура!$B$3:$F$284,5,0) -> 
B131: =VLOOKUP(C131,Номенклатура!$B$3:$F$284,2,0) ->  | D131: =VLOOKUP(C131,Номенклатура!$B$3:$F$284,5,0) -> 
B132: =VLOOKUP(C132,Номенклатура!$B$3:$F$284,2,0) ->  | D132: =VLOOKUP(C132,Номенклатура!$B$3:$F$284,5,0) ->  | F132: =E132*D132 -> 
B133: =VLOOKUP(C133,Номенклатура!$B$3:$F$284,2,0) ->  | D133: =VLOOKUP(C133,Номенклатура!$B$3:$F$284,5,0) -> 
B134: =VLOOKUP(C134,Номенклатура!$B$3:$F$284,2,0) ->  | D134: =VLOOKUP(C134,Номенклатура!$B$3:$F$284,5,0) -> 
B135: =VLOOKUP(C135,Номенклатура!$B$3:$F$284,2,0) ->  | D135: =VLOOKUP(C135,Номенклатура!$B$3:$F$284,5,0) -> 
B136: =VLOOKUP(C136,Номенклатура!$B$3:$F$284,2,0) ->  | D136: =VLOOKUP(C136,Номенклатура!$B$3:$F$284,5,0) -> 
B137: =VLOOKUP(C137,Номенклатура!$B$3:$F$284,2,0) ->  | D137: =VLOOKUP(C137,Номенклатура!$B$3:$F$284,5,0) -> 
B138: =VLOOKUP(C138,Номенклатура!$B$3:$F$284,2,0) ->  | D138: =VLOOKUP(C138,Номенклатура!$B$3:$F$284,5,0) -> 
B139: =VLOOKUP(C139,Номенклатура!$B$3:$F$284,2,0) ->  | D139: =VLOOKUP(C139,Номенклатура!$B$3:$F$284,5,0) -> 
B140: =VLOOKUP(C140,Номенклатура!$B$3:$F$284,2,0) ->  | D140: =VLOOKUP(C140,Номенклатура!$B$3:$F$284,5,0) -> 
B141: =VLOOKUP(C141,Номенклатура!$B$3:$F$284,2,0) ->  | D141: =VLOOKUP(C141,Номенклатура!$B$3:$F$284,5,0) -> 
B142: =VLOOKUP(C142,Номенклатура!$B$3:$F$284,2,0) ->  | D142: =VLOOKUP(C142,Номенклатура!$B$3:$F$284,5,0) -> 
B143: =VLOOKUP(C143,Номенклатура!$B$3:$F$284,2,0) ->  | D143: =VLOOKUP(C143,Номенклатура!$B$3:$F$284,5,0) -> 
B144: =VLOOKUP(C144,Номенклатура!$B$3:$F$284,2,0) ->  | D144: =VLOOKUP(C144,Номенклатура!$B$3:$F$284,5,0) -> 
B145: =VLOOKUP(C145,Номенклатура!$B$3:$F$284,2,0) ->  | D145: =VLOOKUP(C145,Номенклатура!$B$3:$F$284,5,0) -> 
B146: =VLOOKUP(C146,Номенклатура!$B$3:$F$284,2,0) ->  | D146: =VLOOKUP(C146,Номенклатура!$B$3:$F$284,5,0) -> 
B147: =VLOOKUP(C147,Номенклатура!$B$3:$F$284,2,0) ->  | D147: =VLOOKUP(C147,Номенклатура!$B$3:$F$284,5,0) -> 
B148: =VLOOKUP(C148,Номенклатура!$B$3:$F$284,2,0) ->  | D148: =VLOOKUP(C148,Номенклатура!$B$3:$F$284,5,0) -> 
B149: =VLOOKUP(C149,Номенклатура!$B$3:$F$284,2,0) ->  | D149: =VLOOKUP(C149,Номенклатура!$B$3:$F$284,5,0) -> 
B150: =VLOOKUP(C150,Номенклатура!$B$3:$F$284,2,0) ->  | D150: =VLOOKUP(C150,Номенклатура!$B$3:$F$284,5,0) -> 
B151: =VLOOKUP(C151,Номенклатура!$B$3:$F$284,2,0) ->  | D151: =VLOOKUP(C151,Номенклатура!$B$3:$F$284,5,0) -> 
B152: =VLOOKUP(C152,Номенклатура!$B$3:$F$284,2,0) ->  | D152: =VLOOKUP(C152,Номенклатура!$B$3:$F$284,5,0) -> 
B153: =VLOOKUP(C153,Номенклатура!$B$3:$F$284,2,0) ->  | D153: =VLOOKUP(C153,Номенклатура!$B$3:$F$284,5,0) -> 
B154: =VLOOKUP(C154,Номенклатура!$B$3:$F$284,2,0) ->  | D154: =VLOOKUP(C154,Номенклатура!$B$3:$F$284,5,0) -> 
B155: =VLOOKUP(C155,Номенклатура!$B$3:$F$284,2,0) ->  | D155: =VLOOKUP(C155,Номенклатура!$B$3:$F$284,5,0) -> 
B156: =VLOOKUP(C156,Номенклатура!$B$3:$F$284,2,0) ->  | D156: =VLOOKUP(C156,Номенклатура!$B$3:$F$284,5,0) -> 
B157: =VLOOKUP(C157,Номенклатура!$B$3:$F$284,2,0) ->  | D157: =VLOOKUP(C157,Номенклатура!$B$3:$F$284,5,0) -> 
B158: =VLOOKUP(C158,Номенклатура!$B$3:$F$284,2,0) ->  | D158: =VLOOKUP(C158,Номенклатура!$B$3:$F$284,5,0) -> 
B159: =VLOOKUP(C159,Номенклатура!$B$3:$F$284,2,0) ->  | D159: =VLOOKUP(C159,Номенклатура!$B$3:$F$284,5,0) -> 
B160: =VLOOKUP(C160,Номенклатура!$B$3:$F$284,2,0) ->  | D160: =VLOOKUP(C160,Номенклатура!$B$3:$F$284,5,0) -> 
B161: =VLOOKUP(C161,Номенклатура!$B$3:$F$284,2,0) ->  | D161: =VLOOKUP(C161,Номенклатура!$B$3:$F$284,5,0) -> 
B162: =VLOOKUP(C162,Номенклатура!$B$3:$F$284,2,0) ->  | D162: =VLOOKUP(C162,Номенклатура!$B$3:$F$284,5,0) -> 
B163: =VLOOKUP(C163,Номенклатура!$B$3:$F$284,2,0) ->  | D163: =VLOOKUP(C163,Номенклатура!$B$3:$F$284,5,0) -> 
B164: =VLOOKUP(C164,Номенклатура!$B$3:$F$284,2,0) ->  | D164: =VLOOKUP(C164,Номенклатура!$B$3:$F$284,5,0) -> 
B165: =VLOOKUP(C165,Номенклатура!$B$3:$F$284,2,0) ->  | D165: =VLOOKUP(C165,Номенклатура!$B$3:$F$284,5,0) -> 
B166: =VLOOKUP(C166,Номенклатура!$B$3:$F$284,2,0) ->  | D166: =VLOOKUP(C166,Номенклатура!$B$3:$F$284,5,0) -> 
B167: =VLOOKUP(C167,Номенклатура!$B$3:$F$284,2,0) ->  | D167: =VLOOKUP(C167,Номенклатура!$B$3:$F$284,5,0) -> 
B168: =VLOOKUP(C168,Номенклатура!$B$3:$F$284,2,0) ->  | D168: =VLOOKUP(C168,Номенклатура!$B$3:$F$284,5,0) -> 
B169: =VLOOKUP(C169,Номенклатура!$B$3:$F$284,2,0) ->  | D169: =VLOOKUP(C169,Номенклатура!$B$3:$F$284,5,0) -> 
B170: =VLOOKUP(C170,Номенклатура!$B$3:$F$284,2,0) ->  | D170: =VLOOKUP(C170,Номенклатура!$B$3:$F$284,5,0) -> 
B171: =VLOOKUP(C171,Номенклатура!$B$3:$F$284,2,0) ->  | D171: =VLOOKUP(C171,Номенклатура!$B$3:$F$284,5,0) -> 
B172: =VLOOKUP(C172,Номенклатура!$B$3:$F$284,2,0) ->  | D172: =VLOOKUP(C172,Номенклатура!$B$3:$F$284,5,0) -> 
B173: =VLOOKUP(C173,Номенклатура!$B$3:$F$284,2,0) ->  | D173: =VLOOKUP(C173,Номенклатура!$B$3:$F$284,5,0) -> 
B174: =VLOOKUP(C174,Номенклатура!$B$3:$F$284,2,0) ->  | D174: =VLOOKUP(C174,Номенклатура!$B$3:$F$284,5,0) -> 
B175: =VLOOKUP(C175,Номенклатура!$B$3:$F$284,2,0) ->  | D175: =VLOOKUP(C175,Номенклатура!$B$3:$F$284,5,0) -> 
B176: =VLOOKUP(C176,Номенклатура!$B$3:$F$284,2,0) ->  | D176: =VLOOKUP(C176,Номенклатура!$B$3:$F$284,5,0) -> 
B177: =VLOOKUP(C177,Номенклатура!$B$3:$F$284,2,0) ->  | D177: =VLOOKUP(C177,Номенклатура!$B$3:$F$284,5,0) -> 
B178: =VLOOKUP(C178,Номенклатура!$B$3:$F$284,2,0) ->  | D178: =VLOOKUP(C178,Номенклатура!$B$3:$F$284,5,0) -> 
B179: =VLOOKUP(C179,Номенклатура!$B$3:$F$284,2,0) ->  | D179: =VLOOKUP(C179,Номенклатура!$B$3:$F$284,5,0) -> 
B180: =VLOOKUP(C180,Номенклатура!$B$3:$F$284,2,0) ->  | D180: =VLOOKUP(C180,Номенклатура!$B$3:$F$284,5,0) -> 
B181: =VLOOKUP(C181,Номенклатура!$B$3:$F$284,2,0) ->  | D181: =VLOOKUP(C181,Номенклатура!$B$3:$F$284,5,0) -> 
B182: =VLOOKUP(C182,Номенклатура!$B$3:$F$284,2,0) ->  | D182: =VLOOKUP(C182,Номенклатура!$B$3:$F$284,5,0) -> 
B183: =VLOOKUP(C183,Номенклатура!$B$3:$F$284,2,0) ->  | D183: =VLOOKUP(C183,Номенклатура!$B$3:$F$284,5,0) -> 
B184: =VLOOKUP(C184,Номенклатура!$B$3:$F$284,2,0) ->  | D184: =VLOOKUP(C184,Номенклатура!$B$3:$F$284,5,0) -> 
B185: =VLOOKUP(C185,Номенклатура!$B$3:$F$284,2,0) ->  | D185: =VLOOKUP(C185,Номенклатура!$B$3:$F$284,5,0) -> 
B186: =VLOOKUP(C186,Номенклатура!$B$3:$F$284,2,0) ->  | D186: =VLOOKUP(C186,Номенклатура!$B$3:$F$284,5,0) -> 
B187: =VLOOKUP(C187,Номенклатура!$B$3:$F$284,2,0) ->  | D187: =VLOOKUP(C187,Номенклатура!$B$3:$F$284,5,0) -> 
B188: =VLOOKUP(C188,Номенклатура!$B$3:$F$284,2,0) ->  | D188: =VLOOKUP(C188,Номенклатура!$B$3:$F$284,5,0) -> 
B189: =VLOOKUP(C189,Номенклатура!$B$3:$F$284,2,0) ->  | D189: =VLOOKUP(C189,Номенклатура!$B$3:$F$284,5,0) -> 
B190: =VLOOKUP(C190,Номенклатура!$B$3:$F$284,2,0) ->  | D190: =VLOOKUP(C190,Номенклатура!$B$3:$F$284,5,0) -> 
B191: =VLOOKUP(C191,Номенклатура!$B$3:$F$284,2,0) ->  | D191: =VLOOKUP(C191,Номенклатура!$B$3:$F$284,5,0) -> 
B192: =VLOOKUP(C192,Номенклатура!$B$3:$F$284,2,0) ->  | D192: =VLOOKUP(C192,Номенклатура!$B$3:$F$284,5,0) -> 
B193: =VLOOKUP(C193,Номенклатура!$B$3:$F$284,2,0) ->  | D193: =VLOOKUP(C193,Номенклатура!$B$3:$F$284,5,0) -> 
B194: =VLOOKUP(C194,Номенклатура!$B$3:$F$284,2,0) ->  | D194: =VLOOKUP(C194,Номенклатура!$B$3:$F$284,5,0) -> 
B195: =VLOOKUP(C195,Номенклатура!$B$3:$F$284,2,0) ->  | D195: =VLOOKUP(C195,Номенклатура!$B$3:$F$284,5,0) -> 
B196: =VLOOKUP(C196,Номенклатура!$B$3:$F$284,2,0) ->  | D196: =VLOOKUP(C196,Номенклатура!$B$3:$F$284,5,0) ->  | F196: =E196*D196 -> 
B197: =VLOOKUP(C197,Номенклатура!$B$3:$F$284,2,0) ->  | D197: =VLOOKUP(C197,Номенклатура!$B$3:$F$284,5,0) -> 
B198: =VLOOKUP(C198,Номенклатура!$B$3:$F$284,2,0) ->  | D198: =VLOOKUP(C198,Номенклатура!$B$3:$F$284,5,0) -> 
B199: =VLOOKUP(C199,Номенклатура!$B$3:$F$284,2,0) ->  | D199: =VLOOKUP(C199,Номенклатура!$B$3:$F$284,5,0) -> 
B200: =VLOOKUP(C200,Номенклатура!$B$3:$F$284,2,0) ->  | D200: =VLOOKUP(C200,Номенклатура!$B$3:$F$284,5,0) -> 
B201: =VLOOKUP(C201,Номенклатура!$B$3:$F$284,2,0) ->  | D201: =VLOOKUP(C201,Номенклатура!$B$3:$F$284,5,0) -> 
... 506 more rows

Sheet Оборотная ведомость (hidden)
A2: Артикул | B2: Название | C2: Остаток на начало | D2: Приход | E2: Расход | F2: Остаток
A3: 2303299 | B3: Декор на палочке "Коняшка" | C3: 3 | D3: =VLOOKUP(B3,Приход!$B$3:$G$105,6,0) -> 0 | E3: =SUMIFS(Расход!$E$3:$E$707,Расход!$C$3:$C$707,B3) -> 100 | F3: =(C3+D3)-E3 -> -97
A4: 2303298 | B4: Декор на палочке "Резная снежинка" | C4: 3 | D4: =VLOOKUP(B4,Приход!$B$3:$G$105,6,0) -> 0 | E4: =SUMIFS(Расход!$E$3:$E$707,Расход!$C$3:$C$707,B4) -> 200 | F4: =(C4+D4)-E4 -> -197
A5: 1392732 | B5: Декор на палочке "Санта" | C5: 6 | D5: =VLOOKUP(B5,Приход!$B$3:$G$105,6,0) -> 0 | E5: =SUMIFS(Расход!$E$3:$E$707,Расход!$C$3:$C$707,B5) -> 300 | F5: -294
A6: 1392734 | B6: Декор на палочке "Праздничный олень" | C6: 6 | D6: =VLOOKUP(B6,Приход!$B$3:$G$105,6,0) -> 0 | E6: =SUMIFS(Расход!$E$3:$E$707,Расход!$C$3:$C$707,B6) -> 0 | F6: 6
A7: 2534194 | B7: Топпер "2018" | C7: 7 | D7: =VLOOKUP(B7,Приход!$B$3:$G$105,6,0) -> 0 | E7: =SUMIFS(Расход!$E$3:$E$707,Расход!$C$3:$C$707,B7) -> 100 | F7: -93
A8: 2804396 | B8: Декоративные наклейки "Новогодние" новогодние игрушки | C8: 2 | D8: =VLOOKUP(B8,Приход!$B$3:$G$105,6,0) -> 0 | E8: =SUMIFS(Расход!$E$3:$E$707,Расход!$C$3:$C$707,B8) -> 200 | F8: -198
A9: 2366421 | B9: Наклейка для окон "С Новым Годом и Рождеством!" , 33 х 50,5 см | C9: 3 | D9: =VLOOKUP(B9,Приход!$B$3:$G$105,6,0) -> 0 | E9: =SUMIFS(Расход!$E$3:$E$707,Расход!$C$3:$C$707,B9) -> 0 | F9: 3
A10: 2366433 | B10: Наклейка для окон "Сладкого прадника" , 33 х 50,5 см | C10: 3 | D10: =VLOOKUP(B10,Приход!$B$3:$G$105,6,0) -> 0 | E10: =SUMIFS(Расход!$E$3:$E$707,Расход!$C$3:$C$707,B10) -> 100 | F10: -97
A11: 2366435 | B11: Наклейка для окон "Новогодний венок" , 33 х 50,5 см | C11: 3 | D11: =VLOOKUP(B11,Приход!$B$3:$G$105,6,0) -> 0 | E11: =SUMIFS(Расход!$E$3:$E$707,Расход!$C$3:$C$707,B11) -> 0 | F11: 3
A12: 2366440 | B12: Наклейка для окон "Новый год к нам мчится" , 33 х 50,5 см | C12: 3 | D12: =VLOOKUP(B12,Приход!$B$3:$G$105,6,0) -> 0 | E12: =SUMIFS(Расход!$E$3:$E$707,Расход!$C$3:$C$707,B12) -> 200 | F12: -197
A13: 2313523 | B13: Наклейка декоративная светящаяся в темноте "Радости и счастья", 21 х29.7 см | C13: 3 | D13: =VLOOKUP(B13,Приход!$B$3:$G$105,6,0) -> 0 | E13: =SUMIFS(Расход!$E$3:$E$707,Расход!$C$3:$C$707,B13) -> 0 | F13: 3
A14: 2313528 | B14: Наклейка декоративная светящаяся в темноте "Имбирные радости", 21 х29.7 см | C14: 3 | D14: =VLOOKUP(B14,Приход!$B$3:$G$105,6,0) -> 0 | E14: =SUMIFS(Расход!$E$3:$E$707,Расход!$C$3:$C$707,B14) -> 0 | F14: 3
A15: 2400461 | B15: Наклейки декоративные голография "Снежинки", 21х29,7 см | C15: 5 | D15: =VLOOKUP(B15,Приход!$B$3:$G$105,6,0) -> 0 | E15: =SUMIFS(Расход!$E$3:$E$707,Расход!$C$3:$C$707,B15) -> 0 | F15: 5
A16: 1064940 | B16: Пневмохлопушка поворотная "С Новым годом!", 30 см, фольга + бумажные вложения с пожеланиями | C16: 36 | D16: =VLOOKUP(B16,Приход!$B$3:$G$105,6,0) -> 0 | E16: =SUMIFS(Расход!$E$3:$E$707,Расход!$C$3:$C$707,B16) -> 100 | F16: -64
A17: 2354783 | B17: Мягкая игрушка "Собачка Лапуська: Ранняя пташка", 30см | C17: 1 | D17: =VLOOKUP(B17,Приход!$B$3:$G$105,6,0) -> 0 | E17: =SUMIFS(Расход!$E$3:$E$707,Расход!$C$3:$C$707,B17) -> 0 | F17: 1
A18: 2391201 | B18: Пакет крафтовый "Уютный дом", 64 х 32 х 16 см | C18: 5 | D18: =VLOOKUP(B18,Приход!$B$3:$G$105,6,0) -> 0 | E18: =SUMIFS(Расход!$E$3:$E$707,Расход!$C$3:$C$707,B18) -> 100 | F18: -95
A19: 2391203 | B19: Пакет крафтовый "Яркий праздник", 64 х 32 х 16 см | C19: 5 | D19: =VLOOKUP(B19,Приход!$B$3:$G$105,6,0) -> 0 | E19: =SUMIFS(Расход!$E$3:$E$707,Расход!$C$3:$C$707,B19) -> 0 | F19: 5
A20: 2624448 | B20: Пакет подарочный "Новогодние игрушки", люкс, 31 х 12 х 44 см | C20: 36 | D20: =VLOOKUP(B20,Приход!$B$3:$G$105,6,0) -> 0 | E20: =SUMIFS(Расход!$E$3:$E$707,Расход!$C$3:$C$707,B20) -> 0 | F20: 36
A21: 2726786 | B21: Пакет подарочный "Елочные огни" люкс, 32 х 26 х 12 см | C21: 24 | D21: =VLOOKUP(B21,Приход!$B$3:$G$105,6,0) -> 0 | E21: =SUMIFS(Расход!$E$3:$E$707,Расход!$C$3:$C$707,B21) -> 0 | F21: 24
A22: 2726791 | B22: Пакет подарочный "Дерево пожеланий" люкс, 32 х 26 х 12 см | C22: 18 | D22: =VLOOKUP(B22,Приход!$B$3:$G$105,6,0) -> 0 | E22: =SUMIFS(Расход!$E$3:$E$707,Расход!$C$3:$C$707,B22) -> 0 | F22: 18
A23: 2726792 | B23: Пакет подарочный "Снегопад" люкс, 32 х 26 х 12 см | C23: 24 | D23: =VLOOKUP(B23,Приход!$B$3:$G$105,6,0) -> 0 | E23: =SUMIFS(Расход!$E$3:$E$707,Расход!$C$3:$C$707,B23) -> 0 | F23: 24
A24: 2490184 | B24: Пакет подарочный "Ёлочка", люкс, 26 х 10 х 32 см | C24: 24 | D24: =VLOOKUP(B24,Приход!$B$3:$G$105,6,0) -> 0 | E24: =SUMIFS(Расход!$E$3:$E$707,Расход!$C$3:$C$707,B24) -> 0 | F24: 24
A25: 2478308 | B25: Пакет подарочный "Подарки", 32 х 11 х 26 см | C25: 12 | D25: =VLOOKUP(B25,Приход!$B$3:$G$105,6,0) -> 0 | E25: =SUMIFS(Расход!$E$3:$E$707,Расход!$C$3:$C$707,B25) -> 0 | F25: 12
A26: 1606280 | B26: Пакет подарочный под бутылку "Красно-золотые ёлки" люкс, 36 х 12 х 8.5 см | C26: 36 | D26: =VLOOKUP(B26,Приход!$B$3:$G$105,6,0) -> 0 | E26: =SUMIFS(Расход!$E$3:$E$707,Расход!$C$3:$C$707,B26) -> 0 | F26: 36
A27: 1606282 | B27: Пакет подарочный под бутылку "Снежный" люкс, 36 х 12 х 8.5 см | C27: 36 | D27: =VLOOKUP(B27,Приход!$B$3:$G$105,6,0) -> 0 | E27: =SUMIFS(Расход!$E$3:$E$707,Расход!$C$3:$C$707,B27) -> 0 | F27: 36
A28: 2726800 | B28: Пакет подарочный "Хвойный лес" люкс, 23 х 17.8 х 9.8 см | C28: 12 | D28: =VLOOKUP(B28,Приход!$B$3:$G$105,6,0) -> 0 | E28: =SUMIFS(Расход!$E$3:$E$707,Расход!$C$3:$C$707,B28) -> 0 | F28: 12
A29: 1405256 | B29: Набор по декорированию подарочного пакета "Пряности и радости", 16 х 28 см | C29: 10 | D29: =VLOOKUP(B29,Приход!$B$3:$G$105,6,0) -> 0 | E29: =SUMIFS(Расход!$E$3:$E$707,Расход!$C$3:$C$707,B29) -> 0 | F29: 10
A30: 2477856 | B30: Пакет подарочный полиэтиленовый "Вязанный узор", 23х29,5 | C30: 60 | D30: =VLOOKUP(B30,Приход!$B$3:$G$105,6,0) -> 0 | E30: =SUMIFS(Расход!$E$3:$E$707,Расход!$C$3:$C$707,B30) -> 0 | F30: 60
A31: 2477862 | B31: Пакет подарочный полиэтиленовый "Золотая елка", 23х29,5 | C31: 60 | D31: =VLOOKUP(B31,Приход!$B$3:$G$105,6,0) -> 0 | E31: =SUMIFS(Расход!$E$3:$E$707,Расход!$C$3:$C$707,B31) -> 0 | F31: 60
A32: 1386321 | B32: Набор для декорирования шильдика "Пряности и радости" (3 шт), 11,5 х 14 см | C32: 4 | D32: =VLOOKUP(B32,Приход!$B$3:$G$105,6,0) -> 0 | E32: =SUMIFS(Расход!$E$3:$E$707,Расход!$C$3:$C$707,B32) -> 0 | F32: 4
A33: 1760182 | B33: Набор коробок 3в1 "Елочка" 19 х 12 х 7,5 - 15 х 10 х 5 см | C33: 2 | D33: =VLOOKUP(B33,Приход!$B$3:$G$105,6,0) -> 0 | E33: =SUMIFS(Расход!$E$3:$E$707,Расход!$C$3:$C$707,B33) -> 0 | F33: 2
A34: 2786148 | B34: Набор конвертов "Новогодние" | C34: 5 | D34: =VLOOKUP(B34,Приход!$B$3:$G$105,6,0) -> 0 | E34: =SUMIFS(Расход!$E$3:$E$707,Расход!$C$3:$C$707,B34) -> 0 | F34: 5
A35: 2327164 | B35: Подвеска световая "Фонарик серебряный" (батарейки в комплекте), 7 см, 1 LED, RGB | C35: 10 | D35: =VLOOKUP(B35,Приход!$B$3:$G$105,6,0) -> 0 | E35: =SUMIFS(Расход!$E$3:$E$707,Расход!$C$3:$C$707,B35) -> 0 | F35: 10
A36: 2327168 | B36: Подвеска световая "Звезда серебряная" (батарейки в комплекте), 8 см, 1 LED, RGB | C36: 10 | D36: =VLOOKUP(B36,Приход!$B$3:$G$105,6,0) -> 0 | E36: =SUMIFS(Расход!$E$3:$E$707,Расход!$C$3:$C$707,B36) -> 0 | F36: 10
A37: 2361550 | B37: Игрушка световая "Елочный шар узоры краской" 5 см, 1 LED, RGB, ЖЕЛТЫЙ | C37: 10 | D37: =VLOOKUP(B37,Приход!$B$3:$G$105,6,0) -> 0 | E37: =SUMIFS(Расход!$E$3:$E$707,Расход!$C$3:$C$707,B37) -> 0 | F37: 10
A38: 2361546 | B38: Игрушка световая "Елочный шар узоры краской" 5 см, 1LED, RGB, ГОЛУБОЙ | C38: 10 | D38: =VLOOKUP(B38,Приход!$B$3:$G$105,6,0) -> 0 | E38: =SUMIFS(Расход!$E$3:$E$707,Расход!$C$3:$C$707,B38) -> 0 | F38: 10
A39: 2361543 | B39: Игрушка световая "Елочный шар узоры краской" 5 см, 1 LED, RGB, РОЗОВЫЙ | C39: 10 | D39: =VLOOKUP(B39,Приход!$B$3:$G$105,6,0) -> 0 | E39: =SUMIFS(Расход!$E$3:$E$707,Расход!$C$3:$C$707,B39) -> 0 | F39: 10
A40: 2433885 | B40: Гирлянда "Роса" 3 м, 30 LED, (батарейки в комплекте), БЕЛЫЙ | C40: 10 | D40: =VLOOKUP(B40,Приход!$B$3:$G$105,6,0) -> 0 | E40: =SUMIFS(Расход!$E$3:$E$707,Расход!$C$3:$C$707,B40) -> 0 | F40: 10
A41: 2433901 | B41: Гирлянда "Роса" "Бутылочная пробка" 2 м, 20 LED, (батарейки в комплекте), БЕЛЫЙ | C41: 10 | D41: =VLOOKUP(B41,Приход!$B$3:$G$105,6,0) -> 0 | E41: =SUMIFS(Расход!$E$3:$E$707,Расход!$C$3:$C$707,B41) -> 0 | F41: 10
A42: 2433902 | B42: Гирлянда "Роса" "Бутылочная пробка" 2 м, 20 LED, (батарейки в комплекте), ТЕПЛО-БЕЛЫЙ | C42: 15 | D42: =VLOOKUP(B42,Приход!$B$3:$G$105,6,0) -> 0 | E42: =SUMIFS(Расход!$E$3:$E$707,Расход!$C$3:$C$707,B42) -> 0 | F42: 15
A43: 2433908 | B43: Гирлянда "Роса" "Бутылочная пробка" 2 м, 20 LED, (батарейки в комплекте), МУЛЬТИ | C43: 15 | D43: =VLOOKUP(B43,Приход!$B$3:$G$105,6,0) -> 0 | E43: =SUMIFS(Расход!$E$3:$E$707,Расход!$C$3:$C$707,B43) -> 0 | F43: 15
A44: 1585763 | B44: Гирлянда "Метраж" 4 м с насад. “Шарики”, нить темная, УМС вилка, LED-25-220V, контроллер, 8 режимов, мульти | C44: 5 | D44: =VLOOKUP(B44,Приход!$B$3:$G$105,6,0) -> 0 | E44: =SUMIFS(Расход!$E$3:$E$707,Расход!$C$3:$C$707,B44) -> 0 | F44: 5
A45: 2433894 | B45: Гирлянда "Роса" 5 м, 50 LED, (батарейки в комплекте), ТЕПЛО-БЕЛЫЙ | C45: 10 | D45: =VLOOKUP(B45,Приход!$B$3:$G$105,6,0) -> 0 | E45: =SUMIFS(Расход!$E$3:$E$707,Расход!$C$3:$C$707,B45) -> 0 | F45: 10
A46: 671013 | B46: Гирлянда "Метраж" 9 м, нить темная, 240 ламп, 220V, контроллер 8 режимов, БЕЛЫЙ | C46: 5 | D46: =VLOOKUP(B46,Приход!$B$3:$G$105,6,0) -> 0 | E46: =SUMIFS(Расход!$E$3:$E$707,Расход!$C$3:$C$707,B46) -> 0 | F46: 5
A47: 2361617 | B47: Гирлянда "Метраж" 5 м. “Звездочка”, Н.С. LED-50-220V, контроллер 8 р, БЕЛЫЙ | C47: 5 | D47: =VLOOKUP(B47,Приход!$B$3:$G$105,6,0) -> 0 | E47: =SUMIFS(Расход!$E$3:$E$707,Расход!$C$3:$C$707,B47) -> 0 | F47: 5
A48: 2590053 | B48: Шар Новогодний , D=45мм, ручная работа | C48: 5 | D48: =VLOOKUP(B48,Приход!$B$3:$G$105,6,0) -> 0 | E48: =SUMIFS(Расход!$E$3:$E$707,Расход!$C$3:$C$707,B48) -> 0 | F48: 5
A49: 2123129 | B49: Набор шаров пластик d-5,5 см 4 шт полосы серебро | C49: 3 | D49: =VLOOKUP(B49,Приход!$B$3:$G$105,6,0) -> 0 | E49: =SUMIFS(Расход!$E$3:$E$707,Расход!$C$3:$C$707,B49) -> 0 | F49: 3
A50: 2155314 | B50: Набор украшений пластик 5,5 см 4 шт луковица полосы красный | C50: 2 | D50: =VLOOKUP(B50,Приход!$B$3:$G$105,6,0) -> 0 | E50: =SUMIFS(Расход!$E$3:$E$707,Расход!$C$3:$C$707,B50) -> 0 | F50: 2
A51: 1961208 | B51: Шары ёлочные "Удачного года, любви, исполнения желаний", набор 3 шт., d=5 см | C51: 2 | D51: =VLOOKUP(B51,Приход!$B$3:$G$105,6,0) -> 0 | E51: =SUMIFS(Расход!$E$3:$E$707,Расход!$C$3:$C$707,B51) -> 0 | F51: 2
A52: 1961210 | B52: Шары ёлочные "Семейного тепла", набор 3 шт., d=5 см | C52: 2 | D52: =VLOOKUP(B52,Приход!$B$3:$G$105,6,0) -> 0 | E52: =SUMIFS(Расход!$E$3:$E$707,Расход!$C$3:$C$707,B52) -> 0 | F52: 2
A53: 1346607 | B53: Новогодние шары "Серебряная паутинка" (набор 4 шт.) | C53: 2 | D53: =VLOOKUP(B53,Приход!$B$3:$G$105,6,0) -> 0 | E53: =SUMIFS(Расход!$E$3:$E$707,Расход!$C$3:$C$707,B53) -> 0 | F53: 2
A54: 2122882 | B54: Новогодние шары "Туман" (набор 4 шт.), жёлтые, рельеф | C54: 5 | D54: =VLOOKUP(B54,Приход!$B$3:$G$105,6,0) -> 0 | E54: =SUMIFS(Расход!$E$3:$E$707,Расход!$C$3:$C$707,B54) -> 0 | F54: 5
A55: 1307162 | B55: Новогодние шары "Снежинки" цветные (набор 4 шт.) | C55: 5 | D55: =VLOOKUP(B55,Приход!$B$3:$G$105,6,0) -> 0 | E55: =SUMIFS(Расход!$E$3:$E$707,Расход!$C$3:$C$707,B55) -> 0 | F55: 5
A56: 2356900 | B56: Набор шаров пластик "Марсаль" d-5 см 6 шт | C56: 5 | D56: =VLOOKUP(B56,Приход!$B$3:$G$105,6,0) -> 0 | E56: =SUMIFS(Расход!$E$3:$E$707,Расход!$C$3:$C$707,B56) -> 0 | F56: 5
A57: 2363902 | B57: Новогодние шары "Ёлочки и снежинки" (набор 6 шт.) | C57: 5 | D57: =VLOOKUP(B57,Приход!$B$3:$G$105,6,0) -> 0 | E57: =SUMIFS(Расход!$E$3:$E$707,Расход!$C$3:$C$707,B57) -> 0 | F57: 5
A58: 1023298 | B58: Новогодние шары "Туман" сине-розовая звезда (набор 20 шт.) | C58: 3 | D58: =VLOOKUP(B58,Приход!$B$3:$G$105,6,0) -> 0 | E58: =SUMIFS(Расход!$E$3:$E$707,Расход!$C$3:$C$707,B58) -> 0 | F58: 3
A59: 1346567 | B59: Новогодние шары "Ледяной блеск" золото (набор 6 шт.) | C59: 10 | D59: =VLOOKUP(B59,Приход!$B$3:$G$105,6,0) -> 0 | E59: =SUMIFS(Расход!$E$3:$E$707,Расход!$C$3:$C$707,B59) -> 0 | F59: 10
A60: 2123169 | B60: Набор шаров пластик d-6 см 6 шт изумрудик снежинки | C60: 3 | D60: =VLOOKUP(B60,Приход!$B$3:$G$105,6,0) -> 0 | E60: =SUMIFS(Расход!$E$3:$E$707,Расход!$C$3:$C$707,B60) -> 0 | F60: 3
A61: 1346563 | B61: Новогодние шары "Ледяной узор" красные (набор 6 шт.) | C61: 5 | D61: =VLOOKUP(B61,Приход!$B$3:$G$105,6,0) -> 0 | E61: =SUMIFS(Расход!$E$3:$E$707,Расход!$C$3:$C$707,B61) -> 0 | F61: 5
A62: 1346564 | B62: Новогодние шары "Ледяной блеск" красные (набор 6 шт.) | C62: 5 | D62: =VLOOKUP(B62,Приход!$B$3:$G$105,6,0) -> 0 | E62: =SUMIFS(Расход!$E$3:$E$707,Расход!$C$3:$C$707,B62) -> 0 | F62: 5
A63: 2123027 | B63: Набор шаров пластик d-6 см 6 шт двухцветие кружево | C63: 3 | D63: =VLOOKUP(B63,Приход!$B$3:$G$105,6,0) -> 0 | E63: =SUMIFS(Расход!$E$3:$E$707,Расход!$C$3:$C$707,B63) -> 0 | F63: 3
A64: 2123028 | B64: Набор шаров пластик d-6 см 6 шт двухцветие узор | C64: 3 | D64: =VLOOKUP(B64,Приход!$B$3:$G$105,6,0) -> 0 | E64: =SUMIFS(Расход!$E$3:$E$707,Расход!$C$3:$C$707,B64) -> 0 | F64: 3
A65: 2123029 | B65: Набор шаров пластик d-6 см 6 шт двухцветие завитки | C65: 5 | D65: =VLOOKUP(B65,Приход!$B$3:$G$105,6,0) -> 0 | E65: =SUMIFS(Расход!$E$3:$E$707,Расход!$C$3:$C$707,B65) -> 0 | F65: 5
A66: 2123138 | B66: Набор шаров пластик d-6 см 6 шт полосы красный | C66: 2 | D66: =VLOOKUP(B66,Приход!$B$3:$G$105,6,0) -> 0 | E66: =SUMIFS(Расход!$E$3:$E$707,Расход!$C$3:$C$707,B66) -> 0 | F66: 2
A67: 2123149 | B67: Набор шаров пластик d-6 см 6 шт весна бело красный | C67: 5 | D67: =VLOOKUP(B67,Приход!$B$3:$G$105,6,0) -> 0 | E67: =SUMIFS(Расход!$E$3:$E$707,Расход!$C$3:$C$707,B67) -> 0 | F67: 5
A68: 2122879 | B68: Набор шаров пластик d-8 см (набор 4 шт) мираж снег синий | C68: 5 | D68: =VLOOKUP(B68,Приход!$B$3:$G$105,6,0) -> 0 | E68: =SUMIFS(Расход!$E$3:$E$707,Расход!$C$3:$C$707,B68) -> 0 | F68: =(C68+D68)-E68 -> 5
A69: 1346571 | B69: Новогодние шары "Золотой кракелюр" (набор 6 шт.) | C69: 2 | D69: =VLOOKUP(B69,Приход!$B$3:$G$105,6,0) -> 0 | E69: =SUMIFS(Расход!$E$3:$E$707,Расход!$C$3:$C$707,B69) -> 0 | F69: 2
A70: 2122889 | B70: Набор шаров пластик d-6 см аллегро микс (набор 9шт) | C70: 5 | D70: =VLOOKUP(B70,Приход!$B$3:$G$105,6,0) -> 0 | E70: =SUMIFS(Расход!$E$3:$E$707,Расход!$C$3:$C$707,B70) -> 0 | F70: 5
A71: 2178200 | B71: Новогодние шары "Ёлочки" (набор 6 шт.), розовые | C71: 10 | D71: =VLOOKUP(B71,Приход!$B$3:$G$105,6,0) -> 0 | E71: =SUMIFS(Расход!$E$3:$E$707,Расход!$C$3:$C$707,B71) -> 0 | F71: 10
A72: 2131388 | B72: Набор шаров пластик d-10 см 2 шт "Лазурный" снежинка | C72: 10 | D72: =VLOOKUP(B72,Приход!$B$3:$G$105,6,0) -> 0 | E72: =SUMIFS(Расход!$E$3:$E$707,Расход!$C$3:$C$707,B72) -> 0 | F72: 10
A73: 2137149 | B73: Набор шаров пластик d-6 см 6 шт воздушный завитки | C73: 5 | D73: =VLOOKUP(B73,Приход!$B$3:$G$105,6,0) -> 0 | E73: =SUMIFS(Расход!$E$3:$E$707,Расход!$C$3:$C$707,B73) -> 0 | F73: 5
A74: 2123190 | B74: Набор шаров пластик d-8 см 4 шт изумрудик снежинка | C74: 2 | D74: =VLOOKUP(B74,Приход!$B$3:$G$105,6,0) -> 0 | E74: =SUMIFS(Расход!$E$3:$E$707,Расход!$C$3:$C$707,B74) -> 0 | F74: 2
A75: 2123157 | B75: Набор шаров пластик d-6 см 12 шт ассорти бордовое | C75: 2 | D75: =VLOOKUP(B75,Приход!$B$3:$G$105,6,0) -> 0 | E75: =SUMIFS(Расход!$E$3:$E$707,Расход!$C$3:$C$707,B75) -> 0 | F75: 2
A76: 2187021 | B76: Набор шаров пластик d-5 см 16 шт ассорти темно фиолетовое | C76: 5 | D76: =VLOOKUP(B76,Приход!$B$3:$G$105,6,0) -> 0 | E76: =SUMIFS(Расход!$E$3:$E$707,Расход!$C$3:$C$707,B76) -> 0 | F76: 5
A77: 1887055 | B77: Подвеска новогодняя "Звёздочка", МИКС | C77: 6 | D77: =VLOOKUP(B77,Приход!$B$3:$G$105,6,0) -> 0 | E77: =SUMIFS(Расход!$E$3:$E$707,Расход!$C$3:$C$707,B77) -> 0 | F77: 6
A78: 1620121 | B78: Пакет С новым подарком!", полиэтиленовый майка, 28х50 см, 12 мкм | C78: 200 | D78: =VLOOKUP(B78,Приход!$B$3:$G$105,6,0) -> 0 | E78: =SUMIFS(Расход!$E$3:$E$707,Расход!$C$3:$C$707,B78) -> 0 | F78: 200
A79: 2728097 | B79: Пакет "Часы классик", полиэтиленовый с вырубной ручкой, 30х20 см, 30 мкм | C79: 100 | D79: =VLOOKUP(B79,Приход!$B$3:$G$105,6,0) -> 0 | E79: =SUMIFS(Расход!$E$3:$E$707,Расход!$C$3:$C$707,B79) -> 0 | F79: 100
A80: 2737837 | B80: Пакет подарочный "Лавка чудес", 20 х 35 см | C80: 100 | D80: =VLOOKUP(B80,Приход!$B$3:$G$105,6,0) -> 0 | E80: =SUMIFS(Расход!$E$3:$E$707,Расход!$C$3:$C$707,B80) -> 0 | F80: 100
A81: 2450942 | B81: Пакет крафт "С новым годом", 31,5 х 9,5 х 41,5 см | C81: 12 | D81: =VLOOKUP(B81,Приход!$B$3:$G$105,6,0) -> 0 | E81: =SUMIFS(Расход!$E$3:$E$707,Расход!$C$3:$C$707,B81) -> 0 | F81: 12
A82: 2450944 | B82: Пакет крафт "Мешок с подарками", 31,5 х 9,5 х 41,5 см | C82: 12 | D82: =VLOOKUP(B82,Приход!$B$3:$G$105,6,0) -> 0 | E82: =SUMIFS(Расход!$E$3:$E$707,Расход!$C$3:$C$707,B82) -> 0 | F82: 12
A83: 2156498 | B83: Пакет вертикальный крафт "Елочка-красавица", 23 х 27 х 8 см | C83: 12 | D83: =VLOOKUP(B83,Приход!$B$3:$G$105,6,0) -> 0 | E83: =SUMIFS(Расход!$E$3:$E$707,Расход!$C$3:$C$707,B83) -> 0 | F83: 12
A84: 2156508 | B84: Пакет вертикальный крафт "Баночки пожеланий", 23 х 27 х 8 см | C84: 12 | D84: =VLOOKUP(B84,Приход!$B$3:$G$105,6,0) -> 0 | E84: =SUMIFS(Расход!$E$3:$E$707,Расход!$C$3:$C$707,B84) -> 0 | F84: 12
A85: 2156510 | B85: Пакет вертикальный крафт "Носочки с подарками", 23 х 27 х 8 см | C85: 12 | D85: =VLOOKUP(B85,Приход!$B$3:$G$105,6,0) -> 0 | E85: =SUMIFS(Расход!$E$3:$E$707,Расход!$C$3:$C$707,B85) -> 0 | F85: 12
A86: 2276174 | B86: Пакет ламинированный под бутылку "Heppy New Year", 10,5x 36x 9 | C86: 6 | D86: =VLOOKUP(B86,Приход!$B$3:$G$105,6,0) -> 0 | E86: =SUMIFS(Расход!$E$3:$E$707,Расход!$C$3:$C$707,B86) -> 0 | F86: 6
A87: 1299748 | B87: Пакет ламинат вертикальный "Снежинки" ML | C87: 6 | D87: =VLOOKUP(B87,Приход!$B$3:$G$105,6,0) -> 0 | E87: =SUMIFS(Расход!$E$3:$E$707,Расход!$C$3:$C$707,B87) -> 0 | F87: 6
A88: 2113802 | B88: Пакет ламинат вертикальный "Чудесные ёлочки", 23 х27 х 8 см | C88: 6 | D88: =VLOOKUP(B88,Приход!$B$3:$G$105,6,0) -> 0 | E88: =SUMIFS(Расход!$E$3:$E$707,Расход!$C$3:$C$707,B88) -> 0 | F88: 6
A89: 2792330 | B89: Пакет подарочный "Сюрприз", малый 11,5 х 5 х 17,5 см | C89: 24 | D89: =VLOOKUP(B89,Приход!$B$3:$G$105,6,0) -> 0 | E89: =SUMIFS(Расход!$E$3:$E$707,Расход!$C$3:$C$707,B89) -> 0 | F89: 24
A90: 1442996 | B90: Бумага упаковочная крафт "С новым годом", марки, 50 х 70 см | C90: 20 | D90: =VLOOKUP(B90,Приход!$B$3:$G$105,6,0) -> 0 | E90: =SUMIFS(Расход!$E$3:$E$707,Расход!$C$3:$C$707,B90) -> 0 | F90: 20
A91: 2586815 | B91: Бумага упаковочная крафт "Новогодний щенок", 50х70 см | C91: 20 | D91: =VLOOKUP(B91,Приход!$B$3:$G$105,6,0) -> 0 | E91: =SUMIFS(Расход!$E$3:$E$707,Расход!$C$3:$C$707,B91) -> 0 | F91: 20
A92: 2586831 | B92: Бумага упаковочная крафт "В ожидании подарков", 50х70 см | C92: 20 | D92: =VLOOKUP(B92,Приход!$B$3:$G$105,6,0) -> 0 | E92: =SUMIFS(Расход!$E$3:$E$707,Расход!$C$3:$C$707,B92) -> 0 | F92: 20
A93: 2576243 | B93: Бумага упаковочная глянцевая "Новогодняя роспись",70х100 см | C93: 20 | D93: =VLOOKUP(B93,Приход!$B$3:$G$105,6,0) -> 0 | E93: =SUMIFS(Расход!$E$3:$E$707,Расход!$C$3:$C$707,B93) -> 0 | F93: 20
A94: 2576260 | B94: Бумага упаковочная глянцевая "Уютный новый год",70х100 см | C94: 20 | D94: =VLOOKUP(B94,Приход!$B$3:$G$105,6,0) -> 0 | E94: =SUMIFS(Расход!$E$3:$E$707,Расход!$C$3:$C$707,B94) -> 0 | F94: 20
A95: 2576277 | B95: Бумага упаковочная глянцевая "Новогодняя гирлянда",70х100 см | C95: 20 | D95: =VLOOKUP(B95,Приход!$B$3:$G$105,6,0) -> 0 | E95: =SUMIFS(Расход!$E$3:$E$707,Расход!$C$3:$C$707,B95) -> 0 | F95: 20
A96: 2291180 | B96: Набор коробок 5 в1 круг "Новогодняя почта" (14 х14/ 16 х 16/ 18 х18 / 20 х20 /22 х22) | C96: 2 | D96: =VLOOKUP(B96,Приход!$B$3:$G$105,6,0) -> 0 | E96: =SUMIFS(Расход!$E$3:$E$707,Расход!$C$3:$C$707,B96) -> 0 | F96: 2
A97: 2291181 | B97: Набор коробок 5 в1 круг "Подарки под елкой" (14 х14/ 16 х 16/ 18 х18/ 20 х20/ 22 х 22) | C97: 4 | D97: =VLOOKUP(B97,Приход!$B$3:$G$105,6,0) -> 0 | E97: =SUMIFS(Расход!$E$3:$E$707,Расход!$C$3:$C$707,B97) -> 0 | F97: 4
A98: 2437304 | B98: Набор коробок 3 в 1 "Елки", 28 х 28 х 11 - 21 х 21 х 9 см | C98: 1 | D98: =VLOOKUP(B98,Приход!$B$3:$G$105,6,0) -> 0 | E98: =SUMIFS(Расход!$E$3:$E$707,Расход!$C$3:$C$707,B98) -> 0 | F98: 1
A99: 2437303 | B99: Набор коробок 3в1 "Елка", 20 х 20 х 9,5 - 15,5 х 15,5 х 7,5 см | C99: 1 | D99: =VLOOKUP(B99,Приход!$B$3:$G$105,6,0) -> 0 | E99: =SUMIFS(Расход!$E$3:$E$707,Расход!$C$3:$C$707,B99) -> 0 | F99: 1
